{"text_format":"1","workbook":"xlsx","n_sheets":13,"sheets":["Mode d'emploi","Page de garde","Synthèse","E2_Situation_N°1","E2_Situation_N°2","E31_Situation_N°1","E31_Situation_N°2","E32_Situation_N°1","E32_Situation_N°2","E33_Situation_N°1","E33_Situation_N°2","Bilan terminal","Récap Notes"],"not_rendered":{"charts":0,"images":3,"macros":1,"external_links":0,"defined_names":18,"comments":0,"pivot_tables":0},"unopened":[],"bounds":{"document_bytes":16777216,"sheet_cells":100000,"rows_first":2000,"rows_last":500,"rows_between":2000,"halvings":0,"cell_chars":16384,"cell_head_chars":4096},"cells_cut":0,"cells_raw":0,"read":"whole","date_system":"1900"}

{"sheet":"Mode d'emploi","index":0,"n_rows":18,"n_cols":2,"rows_kept":18,"cut":false,"hidden":false,"merged":[[17,0,40,6],[8,1,8,4],[9,1,10,4],[11,1,13,4],[16,2,16,4],[15,1,15,4]]}
[]
[]
[]
[]
[]
[]
[]
[]
[null,"GRILLES EVALUATION CERTIFICATIVE"]
[null,"CCF"]
[]
[null,"BACCALAURÉAT PROFESSIONNEL\nMODÉLISATION ET PROTOTYPAGE 3D (MP3D)"]
[]
[]
[]
[null,"MODE D'EMPLOI"]
[]
["* L'équipe pédagogique renseigne l'onglet \"Page de garde\".\n\n* En fin de formation, durant le dernier trimestre de l'année de terminale, l'équipe pédagogique positionne l'apprenant sur l'ensemble des compétences détaillés de l'onglet \"Synthèse\" (à ce stade de la formation, il ne peut pas y avoir de compétences non évaluées). Ce positionnement prend en compte le niveau d'acquisition des compétences construites dans l'établissement mais également en PFMP (portfolio) et traduites tout au long du processus de formation dans les bilans intermédiaires.\n\n* L'équipe pédagogique propose, pour chaque bloc de compétences, des situations significatives et positionne l'apprenant sur son niveau de maitrise des compétences dans les onglets respectifs.\n\n* A l'issue de ce processus, l'équipe pédagogique se réunit en commission d'évaluation afin de positionner l'apprenant sur son meilleur niveau de maitrise des compétences des différents blocs. Ce meilleur niveau de maîtrise est proposé en colonne \"K\" et peut-être transféré automatique en colonne \"I\" par le bouton \"TRANSFERT DE LA PROPOSITION\" (Si elle le souhaite, la commission d'évaluation peut à la marge modifier le positionnement final de chaque compétence détaillée).\n\n* La commission d'évaluation arrête la proposition de note, arrondie au 1/2 point, de chaque bloc en le reporte dans les cellules H22, H37, H52 et H66.\n\n* L'onglet \"Récap Notes\" précise la synthèse des notes proposées pour les 4 épreuves professionnelles certificatives."]

{"sheet":"Page de garde","index":1,"n_rows":34,"n_cols":3,"rows_kept":34,"cut":false,"hidden":false,"merged":[[33,2,33,4],[31,0,31,1],[33,0,33,1],[29,2,29,4],[31,2,31,4],[25,2,25,4],[27,2,27,4],[23,2,23,4],[9,1,10,4],[11,1,12,4],[14,1,16,4],[19,2,19,4],[21,2,21,4]]}
[]
[]
[]
[]
[]
[]
[]
[]
[]
[null,"GRILLES EVALUATION CERTIFICATIVE"]
[]
[null,"CCF"]
[]
[]
[null,"BACCALAURÉAT PROFESSIONNEL\nMODÉLISATION ET PROTOTYPAGE 3D (MP3D)"]
[]
[]
[]
[]
[null,"Nom :"]
[]
[null,"Prénom :"]
[]
[null,"Naissance :"]
[]
[null,"Académie :"]
[]
[null,"Établissement :"]
[]
[null,null,"Cycle"]
[]
["Début de cycle"]
[]
["Fin de cycle"]

{"sheet":"Synthèse","index":2,"n_rows":50,"n_cols":14,"rows_kept":50,"cut":false,"hidden":false,"merged":[[16,1,20,2],[21,1,23,2],[0,10,3,10],[1,2,3,3],[0,0,0,1],[0,2,0,3],[0,9,3,9],[4,1,5,2],[6,1,11,2],[12,1,15,2],[0,4,1,7],[2,5,2,7],[40,1,45,2],[46,1,48,2],[24,1,25,2],[26,1,30,2],[31,1,37,2],[38,1,39,2]]}
["Compétences",null,"T MP3D - Semestre 2",null,"Bilan fin de cycle en présence de l'apprenant ",null,null,null,null,"BAREME","NOTE masquée",{"$f":"B2&\"_\"&B3","v":"_"}]
[null,{"$f":"IF(NOM<>\"\",NOM,\"\")","v":""},"Synthèse"]
[null,{"$f":"IF(PRENOM<>\"\",PRENOM,\"\")","v":""},null,null,"Date:"]
[null,{"$f":"IF(NAISS<>\"\",NAISS,\"\")","v":""},null,null,"NV","33%","66%","100%","NE"]
["U2","C1  Rechercher une information dans une documentation technique, en  local ou à distance ",null,"C1.1. Mettre en œuvre une démarche de recherche d’information.",null,null,null,null,null,null,null,{"$f":"IF(E5<>\"\",0,IF(F5<>\"\",0.33,IF(G5<>\"\",0.66,IF(H5<>\"\",1,\"NE\"))))","v":"NE"},{"$f":"IF(L5<>\"NE\",J5,0)","v":0},{"$f":"IF(O5=\"Erreur\",\"\",IF(I5<>\"\",\"NE\",IF(E5<>\"\",\"Niv 1\",IF(F5<>\"\",\"Niv 2\",IF(G5<>\"\",\"Niv 3\",IF(H5<>\"\",\"Niv 4\",\"\"))))))","v":""}]
[null,null,null,"C1.2. Classer, hiérarchiser des informations.",null,null,null,null,null,null,null,"NE",0,{"$f":"IF(O6=\"Erreur\",\"\",IF(I6<>\"\",\"NE\",IF(E6<>\"\",\"Niv 1\",IF(F6<>\"\",\"Niv 2\",IF(G6<>\"\",\"Niv 3\",IF(H6<>\"\",\"Niv 4\",\"\"))))))","v":""}]
["U32","C2  Formuler et transmettre des informations, communiquer sous forme  écrite et orale",null,"C2.1 Identifier les informations utiles à transmettre.",null,null,null,null,null,null,null,"NE",0,""]
[null,null,null,"C2.2 Choisir et utiliser les outils de communication en présentiel ou à distance. ",null,null,null,null,null,null,null,"NE",0,""]
[null,null,null,"C2.3 Structurer les informations à restituer. ",null,null,null,null,null,null,null,"NE",0,""]
[null,null,null,"C2.4 Adapter la communication à son interlocuteur. ",null,null,null,null,null,null,null,"NE",0,""]
[null,null,null,"C2.5 Rédiger une partie de rapport, une note, un compte rendu y compris en langue anglaise. ",null,null,null,null,null,null,null,"NE",0,""]
[null,null,null,"C2.6 Présenter oralement un rapport, une note, un compte rendu y compris en langue anglaise.",null,null,null,null,null,null,null,"NE",0,""]
["U32","C3  S’impliquer dans un environnement professionnel",null,"C3.1 Identifier son rôle au sein d’une entreprise, d’un groupe au regard du problème technique à résoudre.",null,null,null,null,null,null,null,"NE",0,""]
[null,null,null,"C3.2 Mettre en œuvre des consignes et/ou des protocoles transmis oralement ou par écrit (mode d’organisation, réglages, sécurité…).",null,null,null,null,null,null,null,"NE",0,""]
[null,null,null,"C3.3 Travailler en équipe. ",null,null,null,null,null,null,null,"NE",0,""]
[null,null,null,"C3.4 Assister l’activité d’un technicien supérieur ou d’un ingénieur",null,null,null,null,null,null,null,"NE",0,""]
["U2","C4  Participer à un processus créatif et collectif de conception d'un produit",null,"C4.1 Prendre en compte le besoin utilisateur dans le cadre d’une démarche collective.",null,null,null,null,null,null,null,"NE",0,""]
[null,null,null,"C4.2 Participer à la mise en place de la séance de créativité.",null,null,null,null,null,null,null,"NE",0,""]
[null,null,null,"C4.3 Participer activement à une démarche de créativité.",null,null,null,null,null,null,null,"NE",0,""]
[null,null,null,"C4.4 Proposer des idées, fonctionnalités prospectives.",null,null,null,null,null,null,null,"NE",0,""]
[null,null,null,"C4.5 Produire des preuves de concept par la (co-)création d'un prototype rudimentaire",null,null,null,null,null,null,null,"NE",0,""]
["U2","C5  Prendre en compte les critères de compétitivité d’un produit d’un point de vue technique, économique et sociétal ",null,"C5.1 Analyser le cycle de vie du produit.",null,null,null,null,null,null,null,"NE",0,""]
[null,null,null,"C5.2 Identifier les différents critères valorisant le produit.",null,null,null,null,null,null,null,"NE",0,""]
[null,null,null,"C5.3 Comparer les impacts des solutions techniques envisagées pour le produit. ",null,null,null,null,null,null,null,"NE",0,""]
["U31","C6  Représenter des solutions technologiques par des croquis et/ou des schémas",null,"C6.1 Produire un schéma cinématique et technologique.",null,null,null,null,null,null,null,"NE",0,""]
[null,null,null,"C6.2 Produire le croquis d'une pièce ou d'un assemblage. ",null,null,null,null,null,null,null,"NE",0,""]
["U31","C7  Modéliser les solutions techniques à l'aide d'outils numériques",null,"C.7.1 Paramétrer les outils numériques liés à la conception.",null,null,null,null,null,null,null,"NE",0,""]
[null,null,null,"C7.2 Élaborer une maquette numérique 3D à partir des solutions techniques retenues.",null,null,null,null,null,null,null,"NE",0,""]
[null,null,null,"C7.3 Modéliser tout ou partie d’une pièce ou d’assemblage à partir d'un outil de rétroconception.",null,null,null,null,null,null,null,"NE",0,""]
[null,null,null,"C7.4 Préparer une maquette numérique en vue d'une simulation, d'un prototypage ou d’un jumeau numérique.",null,null,null,null,null,null,null,"NE",0,""]
[null,null,null,"C7.5 Assurer la sauvegarde et l’archivage des données numériques. ",null,null,null,null,null,null,null,"NE",0,""]
["U31","C8  Optimiser le choix d'une solution en tenant compte de la relation produit-procédé-matériaux et des résultats de simulation",null,"C8.1 Exploiter les caractéristiques du produit afin d'identifier les procédés d'obtention.",null,null,null,null,null,null,null,"NE",0,""]
[null,null,null,"C8.2 Effectuer une simulation simple à partir d’une maquette numérique préparée.",null,null,null,null,null,null,null,"NE",0,""]
[null,null,null,"C8.3 Effectuer un calcul simple dans l’objectif de choisir un matériau ou de déterminer les caractéristiques d’un produit.",null,null,null,null,null,null,null,"NE",0,""]
[null,null,null,"C8.4 Exploiter les résultats de simulation et de calcul afin de choisir un matériau et les traitements adéquats.",null,null,null,null,null,null,null,"NE",0,""]
[null,null,null,"C8.5 Exploiter les résultats de simulation et de calcul afin de déterminer les caractéristiques mécaniques d'un produit.",null,null,null,null,null,null,null,"NE",0,""]
[null,null,null,"C8.6 Modifier une maquette numérique existante en tenant compte de la relation produit-procédé-matériaux.",null,null,null,null,null,null,null,"NE",0,""]
[null,null,null,"C8.7 Optimiser la maquette numérique existante dans le but de satisfaire aux exigences du cahier des charges",null,null,null,null,null,null,null,"NE",0,""]
["U31","C9  Élaborer le dossier de définition d'un produit ",null,"C9.1 Produire la définition des pièces du produit en vue d'une fabrication ou d'un contrôle.",null,null,null,null,null,null,null,"NE",0,""]
[null,null,null,"C9.2 Produire des vues d'ensemble du produit",null,null,null,null,null,null,null,"NE",0,""]
["U32","C10  Réaliser un prototype pour validation fonctionnelle et/ou visuelle",null,"C10.1 Choisir le moyen et le matériau de réalisation du prototype",null,null,null,null,null,null,null,"NE",0,""]
[null,null,null,"C10.2 Paramétrer le moyen de prototypage",null,null,null,null,null,null,null,"NE",0,""]
[null,null,null,"C10.3 Réaliser le prototype",null,null,null,null,null,null,null,"NE",0,""]
[null,null,null,"C10.4 Effectuer le post-traitement du prototype",null,null,null,null,null,null,null,"NE",0,""]
[null,null,null,"C10.5 Contrôler le prototype",null,null,null,null,null,null,null,"NE",0,""]
[null,null,null,"C10.6 Effectuer la maintenance de premier niveau des moyens de prototypage en appliquant les règles de sécurité ",null,null,null,null,null,null,null,"NE",0,""]
["U32","C11  Produire les visuels permettant une exploitation des données par les parties prenantes du projet",null,"C11.1 Produire des représentations graphiques",null,null,null,null,null,null,null,"NE",0,""]
[null,null,null,"C11.2 Produire des documents de communication explicites et/ou interactifs (montage, démontage [vidéos, animations, etc])",null,null,null,null,null,null,null,"NE",0,""]
[null,null,null,"C11.3 Intégrer des représentations dans des outils de réalité immersive et/ou augmentée. ",null,null,null,null,null,null,null,{"$f":"IF(E49<>\"\",0,IF(F49<>\"\",0.33,IF(G49<>\"\",0.66,IF(H49<>\"\",1,\"NE\"))))","v":"NE"},0,""]
[null,null,null,null,null,null,null,null,null,null,null,"NE",0,""]

{"sheet":"E2_Situation_N°1","index":3,"n_rows":33,"n_cols":19,"rows_kept":33,"cut":false,"hidden":false,"merged":[[0,0,6,0],[7,3,7,4],[0,1,2,3],[0,5,0,9],[1,5,1,9],[2,5,2,9],[3,1,3,3],[3,5,3,9],[4,1,4,4],[4,5,4,9],[5,1,5,2],[5,3,5,4],[6,1,6,9],[17,3,17,4],[8,3,8,4],[9,3,9,4],[10,3,10,4],[11,3,11,4],[12,3,12,4],[12,6,12,7],[12,8,12,9],[13,3,13,4],[15,1,15,9],[16,3,16,4],[12,1,13,2],[18,3,18,4],[19,1,20,2],[19,3,19,4],[19,6,19,7],[19,8,19,9],[20,3,20,4],[30,5,30,6],[30,7,30,9],[32,1,32,2],[22,1,22,9],[23,3,23,4],[24,3,24,4],[25,1,26,2],[25,3,25,4],[25,6,25,7],[25,8,25,9],[26,3,26,4],[28,5,28,7],[33,1,33,2],[34,1,34,2],[35,1,35,2],[27,3,27,4],[28,1,28,2],[29,1,31,3]]}
["Compétences mobilisées par le questionnement","BAC PRO MODÉLISATION ET PROTOTYPAGE 3D",null,null,"NOM : ",{"$f":"IF(NOM<>\"\",NOM,\"\")","v":""}]
[null,null,null,null,"Prénom :",{"$f":"IF(PRENOM<>\"\",PRENOM,\"\")","v":""}]
[null,null,null,null,"Session :",{"$f":"IF(FCYCLE<>\"\",FCYCLE,\"\")","v":""}]
[null,"E2 : PROPOSITION D'UNE SOLUTION TECHNIQUE",null,null,"Coeff. 3"]
[null,"SITUATION SIGNIFICATIVE N°1",null,null,null,"NE = non évaluée"]
[null,"Compétences",null,"Indicateurs de performance",null,"NE","Niv 1","Niv 2","Niv 3","niv 4",null,"Pts",null,"Note"]
[null,"C4 : Participer à un processus créatif et collectif de conception d'un produit",null,null,null,null,null,null,null,null,null,8,null,{"$f":"IF(O7<>0,SUM(N8:N12)/SUM(O$8:O$12),\"\")","v":0},{"$f":"SUM(O8:O12)","v":8}]
[null,"C4.1","Prendre en compte le besoin utilisateur dans le cadre d’une démarche collective.","Le parcours de l’utilisateur est identifié.\nLa parole de l’utilisateur est prise en compte.\nSuite à l’échange, le besoin est exprimé.\nLe scénario de validation est établi.",null,null,null,null,null,null,{"$f":"(IF(P8<>1,\"◄\",\"\"))","v":"◄"},2,null,{"$f":"(IF(H8<>\"\",1/3,0)+IF(I8<>\"\",2/3,0)+IF(J8<>\"\",1,0))*L8","v":0},{"$f":"IF(F8<>\"\",\"0\",L8)","v":2},{"$f":"COUNTA(F8:J8)","v":0},{"$f":"IF($I13=\"Erreur\",\"\",IF($I13=\"Tx<50\",\"\",IF($F8=\"x\",\"NE\",IF($G8=\"x\",\"Niv 1\",IF($H8=\"x\",\"Niv 2\",IF($I8=\"x\",\"Niv 3\",IF($J8=\"x\",\"Niv 4\",\"\")))))))","v":""}]
[null,"C4.2","Participer à la mise en place de la séance de créativité.","L’espace est choisi et préparé.\nLes conditions matérielles sont prévues en fonction de la démarche de créativité choisie.",null,null,null,null,null,null,{"$f":"(IF(P9<>1,\"◄\",\"\"))","v":"◄"},2,null,{"$f":"(IF(H9<>\"\",1/3,0)+IF(I9<>\"\",2/3,0)+IF(J9<>\"\",1,0))*L9","v":0},{"$f":"IF(F9<>\"\",\"0\",L9)","v":2},{"$f":"COUNTA(F9:J9)","v":0},{"$f":"IF($I13=\"Erreur\",\"\",IF($I13=\"Tx<50\",\"\",IF($F9=\"x\",\"NE\",IF($G9=\"x\",\"Niv 1\",IF($H9=\"x\",\"Niv 2\",IF($I9=\"x\",\"Niv 3\",IF($J9=\"x\",\"Niv 4\",\"\")))))))","v":""}]
[null,"C4.3","Participer activement à une démarche de créativité.","Les règles de la démarche de créativité sont prises en compte.",null,null,null,null,null,null,"◄",1,null,0,1,0,{"$f":"IF($I13=\"Erreur\",\"\",IF($I13=\"Tx<50\",\"\",IF($F10=\"x\",\"NE\",IF($G10=\"x\",\"Niv 1\",IF($H10=\"x\",\"Niv 2\",IF($I10=\"x\",\"Niv 3\",IF($J10=\"x\",\"Niv 4\",\"\")))))))","v":""}]
[null,"C4.4","Proposer des idées, fonctionnalités prospectives.","Plusieurs idées sont proposées.",null,null,null,null,null,null,"◄",1,null,0,1,0,{"$f":"IF($I13=\"Erreur\",\"\",IF($I13=\"Tx<50\",\"\",IF($F11=\"x\",\"NE\",IF($G11=\"x\",\"Niv 1\",IF($H11=\"x\",\"Niv 2\",IF($I11=\"x\",\"Niv 3\",IF($J11=\"x\",\"Niv 4\",\"\")))))))","v":""}]
[null,"C4.5","Produire des preuves de concept par la (co-) création d'un prototype rudimentaire.","L’idée est concrétisée par la création d’un prototype rudimentaire de toute sorte (carton, pâte à modeler, briques emboitables...).\nLe prototype rudimentaire apporte une compréhension éclairée à toutes les parties prenantes internes et externes.",null,null,null,null,null,null,"◄",2,null,0,2,0,{"$f":"IF($I13=\"Erreur\",\"\",IF($I13=\"Tx<50\",\"\",IF($F12=\"x\",\"NE\",IF($G12=\"x\",\"Niv 1\",IF($H12=\"x\",\"Niv 2\",IF($I12=\"x\",\"Niv 3\",IF($J12=\"x\",\"Niv 4\",\"\")))))))","v":""}]
[null,"Si le taux Tx de CP détaillées évaluées est < 50%, ou si il y a une erreur, alors le calcul est refusé. Voir repères ◄ à droite de la grille.",null,"Taux de compétences détaillées évaluées pour la compétence C4",null,null,{"$f":"O7/SUM(L8:L12)","v":1},null,{"$f":"IF(G13<0.5,\"Tx<50\",IF(P13<>5,\"Erreur\",\"OK\"))","v":"Erreur"},null,null,null,null,null,null,{"$f":"SUM(P8:P12)","v":0},null,null,"²"]
[null,null,null,"Indice note compétence C4 ",null,null,null,{"$f":"IF(AND(N7<>\"\")*AND(I13=\"OK\"),L7*N7,\"\")","v":""},"/",{"$f":"L7","v":8}]
[]
[null,"C5 : Prendre en compte les critères de compétitivité d’un produit d’un point de vue technique, économique et sociétal",null,null,null,null,null,null,null,null,null,7,null,{"$f":"IF(O16<>0,SUM(N17:N19)/SUM(O$17:O$19),\"\")","v":0},{"$f":"SUM(O17:O19)","v":7}]
[null,"C5.1 ","Analyser le cycle de vie du produit.","Les étapes du cycle de vie sont comprises et identifiées.",null,null,null,null,null,null,{"$f":"(IF(P17<>1,\"◄\",\"\"))","v":"◄"},2,null,{"$f":"(IF(H17<>\"\",1/3,0)+IF(I17<>\"\",2/3,0)+IF(J17<>\"\",1,0))*L17","v":0},{"$f":"IF(F17<>\"\",\"0\",L17)","v":2},{"$f":"COUNTA(F17:J17)","v":0},{"$f":"IF($I20=\"Erreur\",\"\",IF($I20=\"Tx<50\",\"\",IF($F17=\"x\",\"NE\",IF($G17=\"x\",\"Niv 1\",IF($H17=\"x\",\"Niv 2\",IF($I17=\"x\",\"Niv 3\",IF($J17=\"x\",\"Niv 4\",\"\")))))))","v":""}]
[null,"C5.2","Identifier les différents critères valorisant le produit.","Les critères d’éco-conception et de développement durable sont identifiés.\nLes éléments de protection industrielle sont identifiés. \nLes critères économiques et sociétaux sont identifiés.\nLes critères techniques et scientifiques sont identifiés.\nLa dimension d’ingénierie design est prise en compte. \n",null,null,null,null,null,null,"◄",2.5,null,0,2.5,0,{"$f":"IF($I20=\"Erreur\",\"\",IF($I20=\"Tx<50\",\"\",IF($F18=\"x\",\"NE\",IF($G18=\"x\",\"Niv 1\",IF($H18=\"x\",\"Niv 2\",IF($I18=\"x\",\"Niv 3\",IF($J18=\"x\",\"Niv 4\",\"\")))))))","v":""}]
[null,"C5.3","Comparer les impacts des solutions techniques envisagées pour le produit.","Des simulations des impacts environnementaux sont effectuées. \nLa comparaison est structurée et permet d’identifier clairement l’importance des impacts.\nLes solutions techniques ont été soumises à une réflexion économique.",null,null,null,null,null,null,"◄",2.5,null,0,2.5,0,{"$f":"IF($I20=\"Erreur\",\"\",IF($I20=\"Tx<50\",\"\",IF($F19=\"x\",\"NE\",IF($G19=\"x\",\"Niv 1\",IF($H19=\"x\",\"Niv 2\",IF($I19=\"x\",\"Niv 3\",IF($J19=\"x\",\"Niv 4\",\"\")))))))","v":""}]
[null,"Si le taux Tx de CP détaillées évaluées est < 50%, ou si il y a une erreur, alors le calcul est refusé. Voir repères ◄ à droite de la grille.",null,"Taux de compétences détaillées évaluées pour la compétence C5",null,null,{"$f":"O16/SUM(L17:L19)","v":1},null,{"$f":"IF(G20<0.5,\"Tx<50\",IF(P20<>3,\"Erreur\",\"OK\"))","v":"Erreur"},null,null,null,null,null,null,{"$f":"SUM(P17:P19)","v":0}]
[null,null,null,"Indice note compétence C5 ",null,null,null,{"$f":"IF(AND(N16<>\"\")*AND(I20=\"OK\"),L16*N16,\"\")","v":""},"/",{"$f":"L16","v":7}]
[]
[null,"C6 : Représenter des solutions technologiques par des croquis et/ou des schémas",null,null,null,null,null,null,null,null,null,5,null,{"$f":"IF(O23<>0,SUM(N24:N25)/SUM(O$24:O$25),\"\")","v":0},{"$f":"SUM(O24:O25)","v":5}]
[null,"C6.1 ","Produire un schéma cinématique et technologique.","Le schéma traduit la cinématique.\nLe schéma technologique met en évidence des solutions constructives.",null,null,null,null,null,null,{"$f":"(IF(P24<>1,\"◄\",\"\"))","v":"◄"},2.5,null,{"$f":"(IF(H24<>\"\",1/3,0)+IF(I24<>\"\",2/3,0)+IF(J24<>\"\",1,0))*L24","v":0},{"$f":"IF(F24<>\"\",\"0\",L24)","v":2.5},{"$f":"COUNTA(F24:J24)","v":0},{"$f":"IF($I26=\"Erreur\",\"\",IF($I26=\"Tx<50\",\"\",IF($F24=\"x\",\"NE\",IF($G24=\"x\",\"Niv 1\",IF($H24=\"x\",\"Niv 2\",IF($I24=\"x\",\"Niv 3\",IF($J24=\"x\",\"Niv 4\",\"\")))))))","v":""}]
[null,"C6.2","Produire le croquis d'une pièce ou d'un assemblage","Le croquis représente la pièce ou l’assemblage en vues planes et/ou perspective. \nLes surfaces fonctionnelles sont retranscrites.\nLes éléments standards sont identifiables. \nLes ordres de grandeur et proportionnalités sont pris en compte.",null,null,null,null,null,null,"◄",2.5,null,0,2.5,0,{"$f":"IF($I26=\"Erreur\",\"\",IF($I26=\"Tx<50\",\"\",IF($F25=\"x\",\"NE\",IF($G25=\"x\",\"Niv 1\",IF($H25=\"x\",\"Niv 2\",IF($I25=\"x\",\"Niv 3\",IF($J25=\"x\",\"Niv 4\",\"\")))))))","v":""}]
[null,"Si le taux Tx de CP détaillées évaluées est < 50%, ou si il y a une erreur, alors le calcul est refusé. Voir repères ◄ à droite de la grille.",null,"Taux de compétences détaillées évaluées pour la compétence C6",null,null,{"$f":"O23/SUM(L24:L25)","v":1},null,{"$f":"IF(G26<0.5,\"Tx<50\",IF(P26<>2,\"Erreur\",\"OK\"))","v":"Erreur"},null,null,null,null,null,null,{"$f":"SUM(P24:P25)","v":0}]
[null,null,null,"Indice note compétence C6 ",null,null,null,{"$f":"IF(AND(N23<>\"\")*AND(I26=\"OK\"),L23*N23,\"\")","v":""},"/",{"$f":"L23","v":5}]
[]
[null,"Appréciation globale :",null,null,null,"NOTE ÉPREUVE E2",null,null,{"$f":"H14+H21+H27","v":{"$error":"#VALUE!"}},"/20"]
[]
[null,null,null,null,null,"Date :",null,{"$f":"NOW()","v":"2025-01-07T11:38:55.840"}]
[]
[null,"Nom(s) évaluateur(s)",null,"Signature(s)"]

{"sheet":"E2_Situation_N°2","index":4,"n_rows":33,"n_cols":19,"rows_kept":33,"cut":false,"hidden":false,"merged":[[0,0,6,0],[7,3,7,4],[0,1,2,3],[0,5,0,9],[1,5,1,9],[2,5,2,9],[3,1,3,3],[3,5,3,9],[4,1,4,4],[4,5,4,9],[5,1,5,2],[5,3,5,4],[6,1,6,9],[17,3,17,4],[8,3,8,4],[9,3,9,4],[10,3,10,4],[11,3,11,4],[12,3,12,4],[12,6,12,7],[12,8,12,9],[13,3,13,4],[15,1,15,9],[16,3,16,4],[12,1,13,2],[18,3,18,4],[19,1,20,2],[19,3,19,4],[19,6,19,7],[19,8,19,9],[20,3,20,4],[30,5,30,6],[30,7,30,9],[32,1,32,2],[22,1,22,9],[23,3,23,4],[24,3,24,4],[25,1,26,2],[25,3,25,4],[25,6,25,7],[25,8,25,9],[26,3,26,4],[28,5,28,7],[33,1,33,2],[34,1,34,2],[35,1,35,2],[27,3,27,4],[28,1,28,2],[29,1,31,3]]}
["Compétences mobilisées par le questionnement","BAC PRO MODÉLISATION ET PROTOTYPAGE 3D",null,null,"NOM : ",{"$f":"IF(NOM<>\"\",NOM,\"\")","v":""}]
[null,null,null,null,"Prénom :",{"$f":"IF(PRENOM<>\"\",PRENOM,\"\")","v":""}]
[null,null,null,null,"Session :",{"$f":"IF(FCYCLE<>\"\",FCYCLE,\"\")","v":""}]
[null,"E2 : PROPOSITION D'UNE SOLUTION TECHNIQUE",null,null,"Coeff. 3"]
[null,"SITUATION SIGNIFICATIVE N°2",null,null,null,"NE = non évaluée"]
[null,"Compétences",null,"Indicateurs de performance",null,"NE","Niv 1","Niv 2","Niv 3","niv 4",null,"Pts",null,"Note"]
[null,"C4 : Participer à un processus créatif et collectif de conception d'un produit",null,null,null,null,null,null,null,null,null,8,null,{"$f":"IF(O7<>0,SUM(N8:N12)/SUM(O$8:O$12),\"\")","v":0},{"$f":"SUM(O8:O12)","v":8}]
[null,"C4.1","Prendre en compte le besoin utilisateur dans le cadre d’une démarche collective.","Le parcours de l’utilisateur est identifié.\nLa parole de l’utilisateur est prise en compte.\nSuite à l’échange, le besoin est exprimé.\nLe scénario de validation est établi.",null,null,null,null,null,null,{"$f":"(IF(P8<>1,\"◄\",\"\"))","v":"◄"},2,null,{"$f":"(IF(H8<>\"\",1/3,0)+IF(I8<>\"\",2/3,0)+IF(J8<>\"\",1,0))*L8","v":0},{"$f":"IF(F8<>\"\",\"0\",L8)","v":2},{"$f":"COUNTA(F8:J8)","v":0},{"$f":"IF($I13=\"Erreur\",\"\",IF($I13=\"Tx<50\",\"\",IF($F8=\"x\",\"NE\",IF($G8=\"x\",\"Niv 1\",IF($H8=\"x\",\"Niv 2\",IF($I8=\"x\",\"Niv 3\",IF($J8=\"x\",\"Niv 4\",\"\")))))))","v":""}]
[null,"C4.2","Participer à la mise en place de la séance de créativité.","L’espace est choisi et préparé.\nLes conditions matérielles sont prévues en fonction de la démarche de créativité choisie.",null,null,null,null,null,null,{"$f":"(IF(P9<>1,\"◄\",\"\"))","v":"◄"},2,null,{"$f":"(IF(H9<>\"\",1/3,0)+IF(I9<>\"\",2/3,0)+IF(J9<>\"\",1,0))*L9","v":0},{"$f":"IF(F9<>\"\",\"0\",L9)","v":2},{"$f":"COUNTA(F9:J9)","v":0},{"$f":"IF($I13=\"Erreur\",\"\",IF($I13=\"Tx<50\",\"\",IF($F9=\"x\",\"NE\",IF($G9=\"x\",\"Niv 1\",IF($H9=\"x\",\"Niv 2\",IF($I9=\"x\",\"Niv 3\",IF($J9=\"x\",\"Niv 4\",\"\")))))))","v":""}]
[null,"C4.3","Participer activement à une démarche de créativité.","Les règles de la démarche de créativité sont prises en compte.",null,null,null,null,null,null,"◄",1,null,0,1,0,{"$f":"IF($I13=\"Erreur\",\"\",IF($I13=\"Tx<50\",\"\",IF($F10=\"x\",\"NE\",IF($G10=\"x\",\"Niv 1\",IF($H10=\"x\",\"Niv 2\",IF($I10=\"x\",\"Niv 3\",IF($J10=\"x\",\"Niv 4\",\"\")))))))","v":""}]
[null,"C4.4","Proposer des idées, fonctionnalités prospectives.","Plusieurs idées sont proposées.",null,null,null,null,null,null,"◄",1,null,0,1,0,{"$f":"IF($I13=\"Erreur\",\"\",IF($I13=\"Tx<50\",\"\",IF($F11=\"x\",\"NE\",IF($G11=\"x\",\"Niv 1\",IF($H11=\"x\",\"Niv 2\",IF($I11=\"x\",\"Niv 3\",IF($J11=\"x\",\"Niv 4\",\"\")))))))","v":""}]
[null,"C4.5","Produire des preuves de concept par la (co-) création d'un prototype rudimentaire.","L’idée est concrétisée par la création d’un prototype rudimentaire de toute sorte (carton, pâte à modeler, briques emboitables...).\nLe prototype rudimentaire apporte une compréhension éclairée à toutes les parties prenantes internes et externes.",null,null,null,null,null,null,"◄",2,null,0,2,0,{"$f":"IF($I13=\"Erreur\",\"\",IF($I13=\"Tx<50\",\"\",IF($F12=\"x\",\"NE\",IF($G12=\"x\",\"Niv 1\",IF($H12=\"x\",\"Niv 2\",IF($I12=\"x\",\"Niv 3\",IF($J12=\"x\",\"Niv 4\",\"\")))))))","v":""}]
[null,"Si le taux Tx de CP détaillées évaluées est < 50%, ou si il y a une erreur, alors le calcul est refusé. Voir repères ◄ à droite de la grille.",null,"Taux de compétences détaillées évaluées pour la compétence C4",null,null,{"$f":"O7/SUM(L8:L12)","v":1},null,{"$f":"IF(G13<0.5,\"Tx<50\",IF(P13<>5,\"Erreur\",\"OK\"))","v":"Erreur"},null,null,null,null,null,null,{"$f":"SUM(P8:P12)","v":0},null,null,"²"]
[null,null,null,"Indice note compétence C4 ",null,null,null,{"$f":"IF(AND(N7<>\"\")*AND(I13=\"OK\"),L7*N7,\"\")","v":""},"/",{"$f":"L7","v":8}]
[]
[null,"C5 : Prendre en compte les critères de compétitivité d’un produit d’un point de vue technique, économique et sociétal",null,null,null,null,null,null,null,null,null,7,null,{"$f":"IF(O16<>0,SUM(N17:N19)/SUM(O$17:O$19),\"\")","v":0},{"$f":"SUM(O17:O19)","v":7}]
[null,"C5.1 ","Analyser le cycle de vie du produit.","Les étapes du cycle de vie sont comprises et identifiées.",null,null,null,null,null,null,{"$f":"(IF(P17<>1,\"◄\",\"\"))","v":"◄"},2,null,{"$f":"(IF(H17<>\"\",1/3,0)+IF(I17<>\"\",2/3,0)+IF(J17<>\"\",1,0))*L17","v":0},{"$f":"IF(F17<>\"\",\"0\",L17)","v":2},{"$f":"COUNTA(F17:J17)","v":0},{"$f":"IF($I20=\"Erreur\",\"\",IF($I20=\"Tx<50\",\"\",IF($F17=\"x\",\"NE\",IF($G17=\"x\",\"Niv 1\",IF($H17=\"x\",\"Niv 2\",IF($I17=\"x\",\"Niv 3\",IF($J17=\"x\",\"Niv 4\",\"\")))))))","v":""}]
[null,"C5.2","Identifier les différents critères valorisant le produit.","Les critères d’éco-conception et de développement durable sont identifiés.\nLes éléments de protection industrielle sont identifiés. \nLes critères économiques et sociétaux sont identifiés.\nLes critères techniques et scientifiques sont identifiés.\nLa dimension d’ingénierie design est prise en compte. \n",null,null,null,null,null,null,"◄",2.5,null,0,2.5,0,{"$f":"IF($I20=\"Erreur\",\"\",IF($I20=\"Tx<50\",\"\",IF($F18=\"x\",\"NE\",IF($G18=\"x\",\"Niv 1\",IF($H18=\"x\",\"Niv 2\",IF($I18=\"x\",\"Niv 3\",IF($J18=\"x\",\"Niv 4\",\"\")))))))","v":""}]
[null,"C5.3","Comparer les impacts des solutions techniques envisagées pour le produit.","Des simulations des impacts environnementaux sont effectuées. \nLa comparaison est structurée et permet d’identifier clairement l’importance des impacts.\nLes solutions techniques ont été soumises à une réflexion économique.",null,null,null,null,null,null,"◄",2.5,null,0,2.5,0,{"$f":"IF($I20=\"Erreur\",\"\",IF($I20=\"Tx<50\",\"\",IF($F19=\"x\",\"NE\",IF($G19=\"x\",\"Niv 1\",IF($H19=\"x\",\"Niv 2\",IF($I19=\"x\",\"Niv 3\",IF($J19=\"x\",\"Niv 4\",\"\")))))))","v":""}]
[null,"Si le taux Tx de CP détaillées évaluées est < 50%, ou si il y a une erreur, alors le calcul est refusé. Voir repères ◄ à droite de la grille.",null,"Taux de compétences détaillées évaluées pour la compétence C5",null,null,{"$f":"O16/SUM(L17:L19)","v":1},null,{"$f":"IF(G20<0.5,\"Tx<50\",IF(P20<>3,\"Erreur\",\"OK\"))","v":"Erreur"},null,null,null,null,null,null,{"$f":"SUM(P17:P19)","v":0}]
[null,null,null,"Indice note compétence C5 ",null,null,null,{"$f":"IF(AND(N16<>\"\")*AND(I20=\"OK\"),L16*N16,\"\")","v":""},"/",{"$f":"L16","v":7}]
[]
[null,"C6 : Représenter des solutions technologiques par des croquis et/ou des schémas",null,null,null,null,null,null,null,null,null,5,null,{"$f":"IF(O23<>0,SUM(N24:N25)/SUM(O$24:O$25),\"\")","v":0},{"$f":"SUM(O24:O25)","v":5}]
[null,"C6.1 ","Produire un schéma cinématique et technologique.","Le schéma traduit la cinématique.\nLe schéma technologique met en évidence des solutions constructives.",null,null,null,null,null,null,{"$f":"(IF(P24<>1,\"◄\",\"\"))","v":"◄"},2.5,null,{"$f":"(IF(H24<>\"\",1/3,0)+IF(I24<>\"\",2/3,0)+IF(J24<>\"\",1,0))*L24","v":0},{"$f":"IF(F24<>\"\",\"0\",L24)","v":2.5},{"$f":"COUNTA(F24:J24)","v":0},{"$f":"IF($I26=\"Erreur\",\"\",IF($I26=\"Tx<50\",\"\",IF($F24=\"x\",\"NE\",IF($G24=\"x\",\"Niv 1\",IF($H24=\"x\",\"Niv 2\",IF($I24=\"x\",\"Niv 3\",IF($J24=\"x\",\"Niv 4\",\"\")))))))","v":""}]
[null,"C6.2","Produire le croquis d'une pièce ou d'un assemblage","Le croquis représente la pièce ou l’assemblage en vues planes et/ou perspective. \nLes surfaces fonctionnelles sont retranscrites.\nLes éléments standards sont identifiables. \nLes ordres de grandeur et proportionnalités sont pris en compte.",null,null,null,null,null,null,"◄",2.5,null,0,2.5,0,{"$f":"IF($I26=\"Erreur\",\"\",IF($I26=\"Tx<50\",\"\",IF($F25=\"x\",\"NE\",IF($G25=\"x\",\"Niv 1\",IF($H25=\"x\",\"Niv 2\",IF($I25=\"x\",\"Niv 3\",IF($J25=\"x\",\"Niv 4\",\"\")))))))","v":""}]
[null,"Si le taux Tx de CP détaillées évaluées est < 50%, ou si il y a une erreur, alors le calcul est refusé. Voir repères ◄ à droite de la grille.",null,"Taux de compétences détaillées évaluées pour la compétence C6",null,null,{"$f":"O23/SUM(L24:L25)","v":1},null,{"$f":"IF(G26<0.5,\"Tx<50\",IF(P26<>2,\"Erreur\",\"OK\"))","v":"Erreur"},null,null,null,null,null,null,{"$f":"SUM(P24:P25)","v":0}]
[null,null,null,"Indice note compétence C6 ",null,null,null,{"$f":"IF(AND(N23<>\"\")*AND(I26=\"OK\"),L23*N23,\"\")","v":""},"/",{"$f":"L23","v":5}]
[]
[null,"Appréciation globale :",null,null,null,"NOTE ÉPREUVE E2",null,null,{"$f":"H14+H21+H27","v":{"$error":"#VALUE!"}},"/20"]
[]
[null,null,null,null,null,"Date :",null,{"$f":"NOW()","v":"2025-01-07T11:38:55.840"}]
[]
[null,"Nom(s) évaluateur(s)",null,"Signature(s)"]

{"sheet":"E31_Situation_N°1","index":5,"n_rows":36,"n_cols":17,"rows_kept":36,"cut":false,"hidden":false,"merged":[[0,0,6,0],[9,0,11,0],[7,3,7,4],[0,1,2,3],[0,5,0,9],[1,5,1,9],[2,5,2,9],[3,1,3,3],[3,5,3,9],[4,1,4,4],[4,5,4,9],[5,1,5,2],[5,3,5,4],[6,1,6,9],[17,3,17,4],[8,3,8,4],[9,1,10,2],[9,3,9,4],[9,6,9,7],[12,1,12,9],[13,3,13,4],[14,3,14,4],[15,3,15,4],[16,3,16,4],[9,8,9,9],[10,3,10,4],[18,3,18,4],[19,1,20,2],[19,3,19,4],[19,6,19,7],[19,8,19,9],[20,3,20,4],[33,5,33,6],[33,7,33,9],[35,1,35,2],[22,1,22,9],[23,3,23,4],[24,3,24,4],[25,3,25,4],[26,3,26,4],[27,1,28,2],[27,3,27,4],[27,6,27,7],[27,8,27,9],[28,3,28,4],[31,5,31,7],[36,1,36,2],[37,1,37,2],[38,1,38,2],[30,3,30,4],[31,1,31,2],[32,1,34,3]]}
["Compétences mobilisées par le questionnement","BAC PRO MODÉLISATION ET PROTOTYPAGE 3D",null,null,"NOM : ",{"$f":"IF(NOM<>\"\",NOM,\"\")","v":""}]
[null,null,null,null,"Prénom :",{"$f":"IF(PRENOM<>\"\",PRENOM,\"\")","v":""}]
[null,null,null,null,"Session :",{"$f":"IF(FCYCLE<>\"\",FCYCLE,\"\")","v":""}]
[null,"E31 : IMPLICATION AU SEIN D'UN BUREAU D'ÉTUDES",null,null,"Coeff. 2"]
[null,"SITUATION SIGNIFICATIVE N°1",null,null,null,"NE = non évaluée"]
[null,"Compétences",null,"Indicateurs de performance",null,"NE",0,"1/3","2/3","3/3",null,"Pts",null,"Note"]
[null,"C1 : Rechercher une information dans une documentation technique, en local ou à distance",null,null,null,null,null,null,null,null,null,{"$f":"SUM(L8:L9)","v":6.2},null,{"$f":"IF(O7<>0,SUM(N8:N9)/SUM(O$8:O$9),\"\")","v":0},{"$f":"SUM(O8:O9)","v":6.2}]
[null,"C1.1","Mettre en œuvre une démarche de recherche d’information.","La fiabilité des informations est vérifiée.\nL'information recherchée est correctement ordonnée.\nLa démarche pour l’obtention de l’information est pertinente.",null,null,null,null,null,null,{"$f":"(IF(P8<>1,\"◄\",\"\"))","v":"◄"},3.1,null,{"$f":"(IF(H8<>\"\",1/3,0)+IF(I8<>\"\",2/3,0)+IF(J8<>\"\",1,0))*L8","v":0},{"$f":"IF(F8<>\"\",\"0\",L8)","v":3.1},{"$f":"COUNTA(F8:J8)","v":0},{"$f":"IF($I10=\"Erreur\",\"\",IF($I10=\"Tx<50\",\"\",IF($F8=\"x\",\"NE\",IF($G8=\"x\",\"Niv 1\",IF($H8=\"x\",\"Niv 2\",IF($I8=\"x\",\"Niv 3\",IF($J8=\"x\",\"Niv 4\",\"\")))))))","v":""}]
[null,"C1.2","Classer, hiérarchiser des informations.","La démarche et les critères de classement et de hiérarchisation des informations sont efficients.",null,null,null,null,null,null,{"$f":"(IF(P9<>1,\"◄\",\"\"))","v":"◄"},3.1,null,{"$f":"(IF(H9<>\"\",1/3,0)+IF(I9<>\"\",2/3,0)+IF(J9<>\"\",1,0))*L9","v":0},{"$f":"IF(F9<>\"\",\"0\",L9)","v":3.1},{"$f":"COUNTA(F9:J9)","v":0},{"$f":"IF($I10=\"Erreur\",\"\",IF($I10=\"Tx<50\",\"\",IF($F9=\"x\",\"NE\",IF($G9=\"x\",\"Niv 1\",IF($H9=\"x\",\"Niv 2\",IF($I9=\"x\",\"Niv 3\",IF($J9=\"x\",\"Niv 4\",\"\")))))))","v":""}]
[null,"Si le taux Tx de CP détaillées évaluées est < 50%, ou si il y a une erreur, alors le calcul est refusé. Voir repères ◄ à droite de la grille.",null,"Taux de compétences détaillées évaluées pour la compétence C1",null,null,{"$f":"O7/SUM(L8:L9)","v":1},null,{"$f":"IF(G10<0.5,\"Tx<50\",IF(P10<>2,\"Erreur\",\"OK\"))","v":"Erreur"},null,null,null,null,null,null,{"$f":"SUM(P8:P9)","v":0}]
[null,null,null,"Indice note compétence C1 ",null,null,null,{"$f":"IF(AND(N7<>\"\")*AND(I10=\"OK\"),L7*N7,\"\")","v":""},"/",{"$f":"L7","v":6.2}]
[]
[null,"C2 : Formuler et transmettre des informations, communiquer sous forme écrite et orale",null,null,null,null,null,null,null,null,null,{"$f":"SUM(L14:L19)","v":5},null,{"$f":"IF(O13<>0,SUM(N14:N19)/SUM(O$14:O$19),\"\")","v":0},{"$f":"SUM(O14:O19)","v":5}]
[null,"C2.1 "," Identifier les informations utiles à transmettre.","Les informations renseignées sur les documents techniques sont correctes.\nLes informations retenues sont exactes et exploitables.",null,null,null,null,null,null,{"$f":"(IF(P14<>1,\"◄\",\"\"))","v":"◄"},0.75,null,{"$f":"(IF(H14<>\"\",1/3,0)+IF(I14<>\"\",2/3,0)+IF(J14<>\"\",1,0))*L14","v":0},{"$f":"IF(F14<>\"\",0,L14)","v":0.75},{"$f":"COUNTA(F14:J14)","v":0},{"$f":"IF($I20=\"Erreur\",\"\",IF($I20=\"Tx<50\",\"\",IF($F14=\"x\",\"NE\",IF($G14=\"x\",\"Niv 1\",IF($H14=\"x\",\"Niv 2\",IF($I14=\"x\",\"Niv 3\",IF($J14=\"x\",\"Niv 4\",\"\")))))))","v":""}]
[null,"C2.2 ","Choisir et utiliser les outils de communication en présentiel ou à distance.","Les outils de communication sont maîtrisés et adaptés (support, forme…).\nLes outils numériques sont correctement mis en œuvre.",null,null,null,null,null,null,{"$f":"(IF(P15<>1,\"◄\",\"\"))","v":"◄"},0.75,null,{"$f":"(IF(H15<>\"\",1/3,0)+IF(I15<>\"\",2/3,0)+IF(J15<>\"\",1,0))*L15","v":0},{"$f":"IF(F15<>\"\",0,L15)","v":0.75},{"$f":"COUNTA(F15:J15)","v":0},{"$f":"IF($I20=\"Erreur\",\"\",IF($I20=\"Tx<50\",\"\",IF($F15=\"x\",\"NE\",IF($G15=\"x\",\"Niv 1\",IF($H15=\"x\",\"Niv 2\",IF($I15=\"x\",\"Niv 3\",IF($J15=\"x\",\"Niv 4\",\"\")))))))","v":""}]
[null,"C2.3","Structurer les informations à restituer.","Les informations structurées sont exploitées à des fins de communication professionnelle. ",null,null,null,null,null,null,{"$f":"(IF(P16<>1,\"◄\",\"\"))","v":"◄"},0.75,null,{"$f":"(IF(H16<>\"\",1/3,0)+IF(I16<>\"\",2/3,0)+IF(J16<>\"\",1,0))*L16","v":0},{"$f":"IF(F16<>\"\",0,L16)","v":0.75},{"$f":"COUNTA(F16:J16)","v":0},{"$f":"IF($I20=\"Erreur\",\"\",IF($I20=\"Tx<50\",\"\",IF($F16=\"x\",\"NE\",IF($G16=\"x\",\"Niv 1\",IF($H16=\"x\",\"Niv 2\",IF($I16=\"x\",\"Niv 3\",IF($J16=\"x\",\"Niv 4\",\"\")))))))","v":""}]
[null,"C2.4","Adapter la communication à son interlocuteur.","Le vocabulaire technique utilisé est pertinent et adapté.",null,null,null,null,null,null,"◄",0.75,null,0,0.75,0,{"$f":"IF($I20=\"Erreur\",\"\",IF($I20=\"Tx<50\",\"\",IF($F17=\"x\",\"NE\",IF($G17=\"x\",\"Niv 1\",IF($H17=\"x\",\"Niv 2\",IF($I17=\"x\",\"Niv 3\",IF($J17=\"x\",\"Niv 4\",\"\")))))))","v":""}]
[null,"C2.5","Rédiger une partie de rapport, une note, un compte rendu y compris en langue anglaise.","Le vocabulaire est pertinent et précis.\nLa maîtrise de la langue est démontrée.",null,null,null,null,null,null,"◄",1,null,0,1,0,{"$f":"IF($I20=\"Erreur\",\"\",IF($I20=\"Tx<50\",\"\",IF($F18=\"x\",\"NE\",IF($G18=\"x\",\"Niv 1\",IF($H18=\"x\",\"Niv 2\",IF($I18=\"x\",\"Niv 3\",IF($J18=\"x\",\"Niv 4\",\"\")))))))","v":""}]
[null,"C2.6  ","Présenter oralement un rapport, une note, un compte rendu y compris en langue anglaise.","L’expression orale est claire y compris en anglais. \nLes propos sont organisés, concis et précis.",null,null,null,null,null,null,{"$f":"(IF(P19<>1,\"◄\",\"\"))","v":"◄"},1,null,{"$f":"(IF(H19<>\"\",1/3,0)+IF(I19<>\"\",2/3,0)+IF(J19<>\"\",1,0))*L19","v":0},{"$f":"IF(F19<>\"\",0,L19)","v":1},{"$f":"COUNTA(F19:J19)","v":0},{"$f":"IF($I20=\"Erreur\",\"\",IF($I20=\"Tx<50\",\"\",IF($F19=\"x\",\"NE\",IF($G19=\"x\",\"Niv 1\",IF($H19=\"x\",\"Niv 2\",IF($I19=\"x\",\"Niv 3\",IF($J19=\"x\",\"Niv 4\",\"\")))))))","v":""}]
[null,"Si le taux Tx de CP détaillées évaluées est < 50%, ou si il y a une erreur, alors le calcul est refusé. Voir repères ◄ à droite de la grille.",null,"Taux de compétences détaillées évaluées pour la compétence C2",null,null,{"$f":"O13/SUM(L14:L19)","v":1},null,{"$f":"IF(G20<0.5,\"Tx<50\",IF(P20<>6,\"Erreur\",\"OK\"))","v":"Erreur"},null,null,null,null,null,null,{"$f":"SUM(P14:P19)","v":0}]
[null,null,null,"Indice note compétence C2 ",null,null,null,{"$f":"IF(AND(N13<>\"\")*AND(I20=\"OK\"),L13*N13,\"\")","v":""},"/",{"$f":"L13","v":5}]
[]
[null,"C3 : S’impliquer dans un environnement professionnel",null,null,null,null,null,null,null,null,null,{"$f":"SUM(L24:L27)","v":8.8000000000000007},null,{"$f":"IF(O23<>0,SUM(N24:N27)/SUM(O$24:O$27),\"\")","v":0},{"$f":"SUM(O24:O27)","v":8.8000000000000007}]
[null,"C3.1","Identifier son rôle au sein d’une entreprise, d’un groupe au regard du problème technique à résoudre.","Le rôle à tenir au sein du groupe est correctement identifié.\nLa définition de son domaine et rôle d’intervention sont compris.",null,null,null,null,null,null,{"$f":"(IF(P24<>1,\"◄\",\"\"))","v":"◄"},1.5,null,{"$f":"(IF(H24<>\"\",1/3,0)+IF(I24<>\"\",2/3,0)+IF(J24<>\"\",1,0))*L24","v":0},{"$f":"IF(F24<>\"\",0,L24)","v":1.5},{"$f":"COUNTA(F24:J24)","v":0},{"$f":"IF($I28=\"Erreur\",\"\",IF($I28=\"Tx<50\",\"\",IF($F24=\"x\",\"NE\",IF($G24=\"x\",\"Niv 1\",IF($H24=\"x\",\"Niv 2\",IF($I24=\"x\",\"Niv 3\",IF($J24=\"x\",\"Niv 4\",\"\")))))))","v":""}]
[null,"C3.2","Mettre en œuvre des consignes et/ou des protocoles transmis oralement ou par écrit (mode d’organisation, réglages, sécurité…). ","Les consignes sont mises en œuvre dans le respect des procédures et des protocoles communiqués.\nLa politique d’archivage de l’entreprise est appliquée.",null,null,null,null,null,null,{"$f":"(IF(P25<>1,\"◄\",\"\"))","v":"◄"},2.5,null,{"$f":"(IF(H25<>\"\",1/3,0)+IF(I25<>\"\",2/3,0)+IF(J25<>\"\",1,0))*L25","v":0},{"$f":"IF(F25<>\"\",0,L25)","v":2.5},{"$f":"COUNTA(F25:J25)","v":0},{"$f":"IF($I28=\"Erreur\",\"\",IF($I28=\"Tx<50\",\"\",IF($F25=\"x\",\"NE\",IF($G25=\"x\",\"Niv 1\",IF($H25=\"x\",\"Niv 2\",IF($I25=\"x\",\"Niv 3\",IF($J25=\"x\",\"Niv 4\",\"\")))))))","v":""}]
[null,"C3.3","Travailler en équipe.","L’implication dans le groupe est effective et collaborative.\nLes arguments des autres membres du groupe sont pris en compte.\nLes postures d'écoute et de discussion adoptées permettent les échanges.",null,null,null,null,null,null,{"$f":"(IF(P26<>1,\"◄\",\"\"))","v":"◄"},3,null,{"$f":"(IF(H26<>\"\",1/3,0)+IF(I26<>\"\",2/3,0)+IF(J26<>\"\",1,0))*L26","v":0},{"$f":"IF(F26<>\"\",0,L26)","v":3},{"$f":"COUNTA(F26:J26)","v":0},{"$f":"IF($I28=\"Erreur\",\"\",IF($I28=\"Tx<50\",\"\",IF($F26=\"x\",\"NE\",IF($G26=\"x\",\"Niv 1\",IF($H26=\"x\",\"Niv 2\",IF($I26=\"x\",\"Niv 3\",IF($J26=\"x\",\"Niv 4\",\"\")))))))","v":""}]
[null,"C3.4","Assister l’activité d’un technicien supérieur ou d’un ingénieur. ","Les demandes formulées sont prises en compte.\nLes délais impartis sont respectés.",null,null,null,null,null,null,{"$f":"(IF(P27<>1,\"◄\",\"\"))","v":"◄"},1.8,null,{"$f":"(IF(H27<>\"\",1/3,0)+IF(I27<>\"\",2/3,0)+IF(J27<>\"\",1,0))*L27","v":0},{"$f":"IF(F27<>\"\",0,L27)","v":1.8},{"$f":"COUNTA(F27:J27)","v":0},{"$f":"IF($I28=\"Erreur\",\"\",IF($I28=\"Tx<50\",\"\",IF($F27=\"x\",\"NE\",IF($G27=\"x\",\"Niv 1\",IF($H27=\"x\",\"Niv 2\",IF($I27=\"x\",\"Niv 3\",IF($J27=\"x\",\"Niv 4\",\"\")))))))","v":""}]
[null,"Si le taux Tx de CP détaillées évaluées est < 50%, ou si il y a une erreur, alors le calcul est refusé. Voir repères ◄ à droite de la grille.",null,"Taux de compétences détaillées évaluées pour la compétence C3",null,null,{"$f":"O23/SUM(L24:L27)","v":1},null,{"$f":"IF(G28<0.5,\"Tx<50\",IF(P28<>4,\"Erreur\",\"OK\"))","v":"Erreur"},null,null,null,null,null,null,{"$f":"SUM(P24:P27)","v":0}]
[null,null,null,"Indice note compétence C3 ",null,null,null,{"$f":"IF(AND(N23<>\"\")*AND(I28=\"OK\"),L23*N23,\"\")","v":""},"/",{"$f":"L23","v":8.8000000000000007}]
[]
[]
[null,"Appréciation globale :",null,null,null,"NOTE ÉPREUVE E31",null,null,{"$f":"H11+H21+H29","v":{"$error":"#VALUE!"}},"/20"]
[]
[null,null,null,null,null,"Date :",null,{"$f":"NOW()","v":"2025-01-07T11:38:55.840"}]
[]
[null,"Nom(s) évaluateur(s)",null,"Signature(s)"]

{"sheet":"E31_Situation_N°2","index":6,"n_rows":36,"n_cols":17,"rows_kept":36,"cut":false,"hidden":false,"merged":[[0,0,6,0],[9,0,11,0],[7,3,7,4],[0,1,2,3],[0,5,0,9],[1,5,1,9],[2,5,2,9],[3,1,3,3],[3,5,3,9],[4,1,4,4],[4,5,4,9],[5,1,5,2],[5,3,5,4],[6,1,6,9],[17,3,17,4],[8,3,8,4],[9,1,10,2],[9,3,9,4],[9,6,9,7],[12,1,12,9],[13,3,13,4],[14,3,14,4],[15,3,15,4],[16,3,16,4],[9,8,9,9],[10,3,10,4],[18,3,18,4],[19,1,20,2],[19,3,19,4],[19,6,19,7],[19,8,19,9],[20,3,20,4],[33,5,33,6],[33,7,33,9],[35,1,35,2],[22,1,22,9],[23,3,23,4],[24,3,24,4],[25,3,25,4],[26,3,26,4],[27,1,28,2],[27,3,27,4],[27,6,27,7],[27,8,27,9],[28,3,28,4],[31,5,31,7],[36,1,36,2],[37,1,37,2],[38,1,38,2],[30,3,30,4],[31,1,31,2],[32,1,34,3]]}
["Compétences mobilisées par le questionnement","BAC PRO MODÉLISATION ET PROTOTYPAGE 3D",null,null,"NOM : ",{"$f":"IF(NOM<>\"\",NOM,\"\")","v":""}]
[null,null,null,null,"Prénom :",{"$f":"IF(PRENOM<>\"\",PRENOM,\"\")","v":""}]
[null,null,null,null,"Session :",{"$f":"IF(FCYCLE<>\"\",FCYCLE,\"\")","v":""}]
[null,"E31 : IMPLICATION AU SEIN D'UN BUREAU D'ETUDES",null,null,"Coeff. 2"]
[null,"SITUATION SIGNIFICATIVE N°2",null,null,null,"NE = non évaluée"]
[null,"Compétences",null,"Indicateurs de performance",null,"NE",0,"1/3","2/3","3/3",null,"Pts",null,"Note"]
[null,"C1 : Rechercher une information dans une documentation technique, en local ou à distance",null,null,null,null,null,null,null,null,null,{"$f":"SUM(L8:L9)","v":6.2},null,{"$f":"IF(O7<>0,SUM(N8:N9)/SUM(O$8:O$9),\"\")","v":0},{"$f":"SUM(O8:O9)","v":6.2}]
[null,"C1.1","Mettre en œuvre une démarche de recherche d’information.","La fiabilité des informations est vérifiée.\nL'information recherchée est correctement ordonnée.\nLa démarche pour l’obtention de l’information est pertinente.",null,null,null,null,null,null,{"$f":"(IF(P8<>1,\"◄\",\"\"))","v":"◄"},3.1,null,{"$f":"(IF(H8<>\"\",1/3,0)+IF(I8<>\"\",2/3,0)+IF(J8<>\"\",1,0))*L8","v":0},{"$f":"IF(F8<>\"\",\"0\",L8)","v":3.1},{"$f":"COUNTA(F8:J8)","v":0},{"$f":"IF($I10=\"Erreur\",\"\",IF($I10=\"Tx<50\",\"\",IF($F8=\"x\",\"NE\",IF($G8=\"x\",\"Niv 1\",IF($H8=\"x\",\"Niv 2\",IF($I8=\"x\",\"Niv 3\",IF($J8=\"x\",\"Niv 4\",\"\")))))))","v":""}]
[null,"C1.2","Classer, hiérarchiser des informations.","La démarche et les critères de classement et de hiérarchisation des informations sont efficients.",null,null,null,null,null,null,{"$f":"(IF(P9<>1,\"◄\",\"\"))","v":"◄"},3.1,null,{"$f":"(IF(H9<>\"\",1/3,0)+IF(I9<>\"\",2/3,0)+IF(J9<>\"\",1,0))*L9","v":0},{"$f":"IF(F9<>\"\",\"0\",L9)","v":3.1},{"$f":"COUNTA(F9:J9)","v":0},{"$f":"IF($I10=\"Erreur\",\"\",IF($I10=\"Tx<50\",\"\",IF($F9=\"x\",\"NE\",IF($G9=\"x\",\"Niv 1\",IF($H9=\"x\",\"Niv 2\",IF($I9=\"x\",\"Niv 3\",IF($J9=\"x\",\"Niv 4\",\"\")))))))","v":""}]
[null,"Si le taux Tx de CP détaillées évaluées est < 50%, ou si il y a une erreur, alors le calcul est refusé. Voir repères ◄ à droite de la grille.",null,"Taux de compétences détaillées évaluées pour la compétence C1",null,null,{"$f":"O7/SUM(L8:L9)","v":1},null,{"$f":"IF(G10<0.5,\"Tx<50\",IF(P10<>2,\"Erreur\",\"OK\"))","v":"Erreur"},null,null,null,null,null,null,{"$f":"SUM(P8:P9)","v":0}]
[null,null,null,"Indice note compétence C1 ",null,null,null,{"$f":"IF(AND(N7<>\"\")*AND(I10=\"OK\"),L7*N7,\"\")","v":""},"/",{"$f":"L7","v":6.2}]
[]
[null,"C2 : Formuler et transmettre des informations, communiquer sous forme écrite et orale",null,null,null,null,null,null,null,null,null,{"$f":"SUM(L14:L19)","v":5},null,{"$f":"IF(O13<>0,SUM(N14:N19)/SUM(O$14:O$19),\"\")","v":0},{"$f":"SUM(O14:O19)","v":5}]
[null,"C2.1 "," Identifier les informations utiles à transmettre.","Les informations renseignées sur les documents techniques sont correctes.\nLes informations retenues sont exactes et exploitables.",null,null,null,null,null,null,{"$f":"(IF(P14<>1,\"◄\",\"\"))","v":"◄"},0.75,null,{"$f":"(IF(H14<>\"\",1/3,0)+IF(I14<>\"\",2/3,0)+IF(J14<>\"\",1,0))*L14","v":0},{"$f":"IF(F14<>\"\",0,L14)","v":0.75},{"$f":"COUNTA(F14:J14)","v":0},{"$f":"IF($I20=\"Erreur\",\"\",IF($I20=\"Tx<50\",\"\",IF($F14=\"x\",\"NE\",IF($G14=\"x\",\"Niv 1\",IF($H14=\"x\",\"Niv 2\",IF($I14=\"x\",\"Niv 3\",IF($J14=\"x\",\"Niv 4\",\"\")))))))","v":""}]
[null,"C2.2 ","Choisir et utiliser les outils de communication en présentiel ou à distance.","Les outils de communication sont maîtrisés et adaptés (support, forme…).\nLes outils numériques sont correctement mis en œuvre.",null,null,null,null,null,null,{"$f":"(IF(P15<>1,\"◄\",\"\"))","v":"◄"},0.75,null,{"$f":"(IF(H15<>\"\",1/3,0)+IF(I15<>\"\",2/3,0)+IF(J15<>\"\",1,0))*L15","v":0},{"$f":"IF(F15<>\"\",0,L15)","v":0.75},{"$f":"COUNTA(F15:J15)","v":0},{"$f":"IF($I20=\"Erreur\",\"\",IF($I20=\"Tx<50\",\"\",IF($F15=\"x\",\"NE\",IF($G15=\"x\",\"Niv 1\",IF($H15=\"x\",\"Niv 2\",IF($I15=\"x\",\"Niv 3\",IF($J15=\"x\",\"Niv 4\",\"\")))))))","v":""}]
[null,"C2.3","Structurer les informations à restituer.","Les informations structurées sont exploitées à des fins de communication professionnelle. ",null,null,null,null,null,null,{"$f":"(IF(P16<>1,\"◄\",\"\"))","v":"◄"},0.75,null,{"$f":"(IF(H16<>\"\",1/3,0)+IF(I16<>\"\",2/3,0)+IF(J16<>\"\",1,0))*L16","v":0},{"$f":"IF(F16<>\"\",0,L16)","v":0.75},{"$f":"COUNTA(F16:J16)","v":0},{"$f":"IF($I20=\"Erreur\",\"\",IF($I20=\"Tx<50\",\"\",IF($F16=\"x\",\"NE\",IF($G16=\"x\",\"Niv 1\",IF($H16=\"x\",\"Niv 2\",IF($I16=\"x\",\"Niv 3\",IF($J16=\"x\",\"Niv 4\",\"\")))))))","v":""}]
[null,"C2.4","Adapter la communication à son interlocuteur.","Le vocabulaire technique utilisé est pertinent et adapté.",null,null,null,null,null,null,"◄",0.75,null,0,0.75,0,{"$f":"IF($I20=\"Erreur\",\"\",IF($I20=\"Tx<50\",\"\",IF($F17=\"x\",\"NE\",IF($G17=\"x\",\"Niv 1\",IF($H17=\"x\",\"Niv 2\",IF($I17=\"x\",\"Niv 3\",IF($J17=\"x\",\"Niv 4\",\"\")))))))","v":""}]
[null,"C2.5","Rédiger une partie de rapport, une note, un compte rendu y compris en langue anglaise.","Le vocabulaire est pertinent et précis.\nLa maîtrise de la langue est démontrée.",null,null,null,null,null,null,"◄",1,null,0,1,0,{"$f":"IF($I20=\"Erreur\",\"\",IF($I20=\"Tx<50\",\"\",IF($F18=\"x\",\"NE\",IF($G18=\"x\",\"Niv 1\",IF($H18=\"x\",\"Niv 2\",IF($I18=\"x\",\"Niv 3\",IF($J18=\"x\",\"Niv 4\",\"\")))))))","v":""}]
[null,"C2.6  ","Présenter oralement un rapport, une note, un compte rendu y compris en langue anglaise.","L’expression orale est claire y compris en anglais. \nLes propos sont organisés, concis et précis.",null,null,null,null,null,null,{"$f":"(IF(P19<>1,\"◄\",\"\"))","v":"◄"},1,null,{"$f":"(IF(H19<>\"\",1/3,0)+IF(I19<>\"\",2/3,0)+IF(J19<>\"\",1,0))*L19","v":0},{"$f":"IF(F19<>\"\",0,L19)","v":1},{"$f":"COUNTA(F19:J19)","v":0},{"$f":"IF($I20=\"Erreur\",\"\",IF($I20=\"Tx<50\",\"\",IF($F19=\"x\",\"NE\",IF($G19=\"x\",\"Niv 1\",IF($H19=\"x\",\"Niv 2\",IF($I19=\"x\",\"Niv 3\",IF($J19=\"x\",\"Niv 4\",\"\")))))))","v":""}]
[null,"Si le taux Tx de CP détaillées évaluées est < 50%, ou si il y a une erreur, alors le calcul est refusé. Voir repères ◄ à droite de la grille.",null,"Taux de compétences détaillées évaluées pour la compétence C2",null,null,{"$f":"O13/SUM(L14:L19)","v":1},null,{"$f":"IF(G20<0.5,\"Tx<50\",IF(P20<>6,\"Erreur\",\"OK\"))","v":"Erreur"},null,null,null,null,null,null,{"$f":"SUM(P14:P19)","v":0}]
[null,null,null,"Indice note compétence C2 ",null,null,null,{"$f":"IF(AND(N13<>\"\")*AND(I20=\"OK\"),L13*N13,\"\")","v":""},"/",{"$f":"L13","v":5}]
[]
[null,"C3 : S’impliquer dans un environnement professionnel",null,null,null,null,null,null,null,null,null,{"$f":"SUM(L24:L27)","v":8.8000000000000007},null,{"$f":"IF(O23<>0,SUM(N24:N27)/SUM(O$24:O$27),\"\")","v":0},{"$f":"SUM(O24:O27)","v":8.8000000000000007}]
[null,"C3.1","Identifier son rôle au sein d’une entreprise, d’un groupe au regard du problème technique à résoudre.","Le rôle à tenir au sein du groupe est correctement identifié.\nLa définition de son domaine et rôle d’intervention sont compris.",null,null,null,null,null,null,{"$f":"(IF(P24<>1,\"◄\",\"\"))","v":"◄"},1.5,null,{"$f":"(IF(H24<>\"\",1/3,0)+IF(I24<>\"\",2/3,0)+IF(J24<>\"\",1,0))*L24","v":0},{"$f":"IF(F24<>\"\",0,L24)","v":1.5},{"$f":"COUNTA(F24:J24)","v":0},{"$f":"IF($I28=\"Erreur\",\"\",IF($I28=\"Tx<50\",\"\",IF($F24=\"x\",\"NE\",IF($G24=\"x\",\"Niv 1\",IF($H24=\"x\",\"Niv 2\",IF($I24=\"x\",\"Niv 3\",IF($J24=\"x\",\"Niv 4\",\"\")))))))","v":""}]
[null,"C3.2","Mettre en œuvre des consignes et/ou des protocoles transmis oralement ou par écrit (mode d’organisation, réglages, sécurité…). ","Les consignes sont mises en œuvre dans le respect des procédures et des protocoles communiqués.\nLa politique d’archivage de l’entreprise est appliquée.",null,null,null,null,null,null,{"$f":"(IF(P25<>1,\"◄\",\"\"))","v":"◄"},2.5,null,{"$f":"(IF(H25<>\"\",1/3,0)+IF(I25<>\"\",2/3,0)+IF(J25<>\"\",1,0))*L25","v":0},{"$f":"IF(F25<>\"\",0,L25)","v":2.5},{"$f":"COUNTA(F25:J25)","v":0},{"$f":"IF($I28=\"Erreur\",\"\",IF($I28=\"Tx<50\",\"\",IF($F25=\"x\",\"NE\",IF($G25=\"x\",\"Niv 1\",IF($H25=\"x\",\"Niv 2\",IF($I25=\"x\",\"Niv 3\",IF($J25=\"x\",\"Niv 4\",\"\")))))))","v":""}]
[null,"C3.3","Travailler en équipe.","L’implication dans le groupe est effective et collaborative.\nLes arguments des autres membres du groupe sont pris en compte.\nLes postures d'écoute et de discussion adoptées permettent les échanges.",null,null,null,null,null,null,{"$f":"(IF(P26<>1,\"◄\",\"\"))","v":"◄"},3,null,{"$f":"(IF(H26<>\"\",1/3,0)+IF(I26<>\"\",2/3,0)+IF(J26<>\"\",1,0))*L26","v":0},{"$f":"IF(F26<>\"\",0,L26)","v":3},{"$f":"COUNTA(F26:J26)","v":0},{"$f":"IF($I28=\"Erreur\",\"\",IF($I28=\"Tx<50\",\"\",IF($F26=\"x\",\"NE\",IF($G26=\"x\",\"Niv 1\",IF($H26=\"x\",\"Niv 2\",IF($I26=\"x\",\"Niv 3\",IF($J26=\"x\",\"Niv 4\",\"\")))))))","v":""}]
[null,"C3.4","Assister l’activité d’un technicien supérieur ou d’un ingénieur. ","Les demandes formulées sont prises en compte.\nLes délais impartis sont respectés.",null,null,null,null,null,null,{"$f":"(IF(P27<>1,\"◄\",\"\"))","v":"◄"},1.8,null,{"$f":"(IF(H27<>\"\",1/3,0)+IF(I27<>\"\",2/3,0)+IF(J27<>\"\",1,0))*L27","v":0},{"$f":"IF(F27<>\"\",0,L27)","v":1.8},{"$f":"COUNTA(F27:J27)","v":0},{"$f":"IF($I28=\"Erreur\",\"\",IF($I28=\"Tx<50\",\"\",IF($F27=\"x\",\"NE\",IF($G27=\"x\",\"Niv 1\",IF($H27=\"x\",\"Niv 2\",IF($I27=\"x\",\"Niv 3\",IF($J27=\"x\",\"Niv 4\",\"\")))))))","v":""}]
[null,"Si le taux Tx de CP détaillées évaluées est < 50%, ou si il y a une erreur, alors le calcul est refusé. Voir repères ◄ à droite de la grille.",null,"Taux de compétences détaillées évaluées pour la compétence C3",null,null,{"$f":"O23/SUM(L24:L27)","v":1},null,{"$f":"IF(G28<0.5,\"Tx<50\",IF(P28<>4,\"Erreur\",\"OK\"))","v":"Erreur"},null,null,null,null,null,null,{"$f":"SUM(P24:P27)","v":0}]
[null,null,null,"Indice note compétence C3 ",null,null,null,{"$f":"IF(AND(N23<>\"\")*AND(I28=\"OK\"),L23*N23,\"\")","v":""},"/",{"$f":"L23","v":8.8000000000000007}]
[]
[]
[null,"Appréciation globale :",null,null,null,"NOTE ÉPREUVE E31",null,null,{"$f":"H11+H21+H29","v":{"$error":"#VALUE!"}},"/20"]
[]
[null,null,null,null,null,"Date :",null,{"$f":"NOW()","v":"2025-01-07T11:38:55.840"}]
[]
[null,"Nom(s) évaluateur(s)",null,"Signature(s)"]

{"sheet":"E32_Situation_N°1","index":7,"n_rows":32,"n_cols":18,"rows_kept":32,"cut":false,"hidden":false,"merged":[[0,0,6,0],[12,0,15,0],[7,3,7,4],[0,1,2,3],[0,5,0,9],[1,5,1,9],[2,5,2,9],[3,1,3,3],[3,5,3,9],[4,1,4,4],[4,5,4,9],[5,1,5,2],[5,3,5,4],[6,1,6,9],[12,6,12,7],[12,8,12,9],[17,3,17,4],[8,3,8,4],[9,3,9,4],[10,3,10,4],[11,3,11,4],[12,3,12,4],[13,3,13,4],[15,1,15,9],[16,3,16,4],[12,1,13,2],[18,3,18,4],[19,3,19,4],[20,3,20,4],[21,3,21,4],[22,3,22,4],[23,8,23,9],[24,3,24,4],[26,3,26,4],[27,1,27,2],[28,1,30,3],[29,5,29,6],[29,7,29,9],[23,1,24,2],[23,3,23,4],[27,5,27,7],[31,1,31,2],[32,1,32,2],[33,1,33,2],[34,1,34,2],[23,6,23,7]]}
["Compétences mobilisées par le questionnement","BAC PRO MODÉLISATION ET PROTOTYPAGE 3D",null,null,"NOM : ",{"$f":"IF(NOM<>\"\",NOM,\"\")","v":""}]
[null,null,null,null,"Prénom :",{"$f":"IF(PRENOM<>\"\",PRENOM,\"\")","v":""}]
[null,null,null,null,"Session :",{"$f":"IF(FCYCLE<>\"\",FCYCLE,\"\")","v":""}]
[null,"E32 : MODÉLISATION ET OPTIMISATION D'UNE SOLUTION TECHNIQUE",null,null,"Coeff. 5"]
[null,"SITUATION SIGNIFICATIVE N°1",null,null,null,"NE = non évaluée"]
[null,"Compétences",null,"Indicateurs de performance",null,"NE",0,"1/3","2/3","3/3",null,"Pts",null,"Note"]
[null,"C7 : Modéliser les solutions techniques à l'aide d'outils numériques",null,null,null,null,null,null,null,null,null,{"$f":"SUM(L8:L12)","v":9.1999999999999993},null,{"$f":"IF(O7<>0,SUM(N8:N12)/SUM(O$8:O$12),\"\")","v":0},{"$f":"SUM(O8:O12)","v":9.1999999999999993}]
[null,"C7.1","Paramétrer les outils numériques liés à la conception.","L’environnement de travail du modeleur volumique est paramétré.\nLes modules complémentaires sont paramétrés.",null,null,null,null,null,null,{"$f":"(IF(P8<>1,\"◄\",\"\"))","v":"◄"},0.5,null,{"$f":"(IF(H8<>\"\",1/3,0)+IF(I8<>\"\",2/3,0)+IF(J8<>\"\",1,0))*L8","v":0},{"$f":"IF(F8<>\"\",\"0\",L8)","v":0.5},{"$f":"COUNTA(F8:J8)","v":0},{"$f":"IF($I13=\"Erreur\",\"\",IF($I13=\"Tx<50\",\"\",IF($F8=\"x\",\"NE\",IF($G8=\"x\",\"Niv 1\",IF($H8=\"x\",\"Niv 2\",IF($I8=\"x\",\"Niv 3\",IF($J8=\"x\",\"Niv 4\",\"\")))))))","v":""},{"$f":"IF($I13=\"Erreur\",\"\",IF($I13=\"Tx<50\",\"\",IF($F8=\"x\",\"NE\",IF($G8=\"x\",\"Niv 1\",IF($H8=\"x\",\"Niv 2\",IF($I8=\"x\",\"Niv 3\",IF($J8=\"x\",\"Niv 4\",\"\")))))))","v":""}]
[null,"C7.2","Élaborer une maquette numérique 3D à partir des solutions techniques retenues.","Les pièces sont créées en respectant la relation produit-procédé-matériaux.\nLes sous-ensembles ou assemblages sont définis en respectant les contraintes (absences d’interférences, respect des liaisons).\nLes arbres de création et d’assemblage sont optimisés.",null,null,null,null,null,null,"◄",3.5,null,0,3.5,0,{"$f":"IF($I13=\"Erreur\",\"\",IF($I13=\"Tx<50\",\"\",IF($F9=\"x\",\"NE\",IF($G9=\"x\",\"Niv 1\",IF($H9=\"x\",\"Niv 2\",IF($I9=\"x\",\"Niv 3\",IF($J9=\"x\",\"Niv 4\",\"\")))))))","v":""},{"$f":"IF($I13=\"Erreur\",\"\",IF($I13=\"Tx<50\",\"\",IF($F9=\"x\",\"NE\",IF($G9=\"x\",\"Niv 1\",IF($H9=\"x\",\"Niv 2\",IF($I9=\"x\",\"Niv 3\",IF($J9=\"x\",\"Niv 4\",\"\")))))))","v":""}]
[null,"C7.3","Modéliser tout ou partie d’une pièce ou d’assemblage à partir d'un outil de rétroconception.","Tout ou partie de la pièce ou de l’assemblage est préparée en vue de sa numérisation.\nLes outils de rétroconception sont mis en œuvre à partir d’un protocole d’usage.\nLe modèle est reconstruit en vue de son exploitation.",null,null,null,null,null,null,"◄",2,null,0,2,0,{"$f":"IF($I13=\"Erreur\",\"\",IF($I13=\"Tx<50\",\"\",IF($F10=\"x\",\"NE\",IF($G10=\"x\",\"Niv 1\",IF($H10=\"x\",\"Niv 2\",IF($I10=\"x\",\"Niv 3\",IF($J10=\"x\",\"Niv 4\",\"\")))))))","v":""},{"$f":"IF($I13=\"Erreur\",\"\",IF($I13=\"Tx<50\",\"\",IF($F10=\"x\",\"NE\",IF($G10=\"x\",\"Niv 1\",IF($H10=\"x\",\"Niv 2\",IF($I10=\"x\",\"Niv 3\",IF($J10=\"x\",\"Niv 4\",\"\")))))))","v":""}]
[null,"C7.4","Préparer une maquette numérique en vue d'une simulation, d'un prototypage ou d’un jumeau numérique.","Les pièces, assemblages et contraintes sont simplifiés sans réduire la cohérence de la maquette.\nLe maillage retenu permet une exploitation.\nLes informations nécessaires à l’élaboration d’un jumeau numérique sont fournies.",null,null,null,null,null,null,"◄",2,null,0,2,0,{"$f":"IF($I13=\"Erreur\",\"\",IF($I13=\"Tx<50\",\"\",IF($F11=\"x\",\"NE\",IF($G11=\"x\",\"Niv 1\",IF($H11=\"x\",\"Niv 2\",IF($I11=\"x\",\"Niv 3\",IF($J11=\"x\",\"Niv 4\",\"\")))))))","v":""},{"$f":"IF($I13=\"Erreur\",\"\",IF($I13=\"Tx<50\",\"\",IF($F11=\"x\",\"NE\",IF($G11=\"x\",\"Niv 1\",IF($H11=\"x\",\"Niv 2\",IF($I11=\"x\",\"Niv 3\",IF($J11=\"x\",\"Niv 4\",\"\")))))))","v":""}]
[null,"C7.5","C7.5 Assurer la sauvegarde et l’archivage des données numériques.","Les enregistrements courants sont gérés.\nLes différentes versions sont identifiées.\nLes formats de fichiers utilisés sont en cohérence avec les applicatifs disponibles.\nLes bases de données et ressources numériques sont disponibles.",null,null,null,null,null,null,"◄",1.2,null,0,1.2,0,{"$f":"IF($I13=\"Erreur\",\"\",IF($I13=\"Tx<50\",\"\",IF($F12=\"x\",\"NE\",IF($G12=\"x\",\"Niv 1\",IF($H12=\"x\",\"Niv 2\",IF($I12=\"x\",\"Niv 3\",IF($J12=\"x\",\"Niv 4\",\"\")))))))","v":""},{"$f":"IF($I13=\"Erreur\",\"\",IF($I13=\"Tx<50\",\"\",IF($F12=\"x\",\"NE\",IF($G12=\"x\",\"Niv 1\",IF($H12=\"x\",\"Niv 2\",IF($I12=\"x\",\"Niv 3\",IF($J12=\"x\",\"Niv 4\",\"\")))))))","v":""}]
[null,"Si le taux Tx de CP détaillées évaluées est < 50%, ou si il y a une erreur, alors le calcul est refusé. Voir repères ◄ à droite de la grille.",null,"Taux de compétences détaillées évaluées pour la compétence C7",null,null,{"$f":"O7/SUM(L8:L12)","v":1},null,{"$f":"IF(G13<0.5,\"Tx<50\",IF(P13<>5,\"Erreur\",\"OK\"))","v":"Erreur"},null,null,null,null,null,null,{"$f":"SUM(P8:P12)","v":0}]
[null,null,null,"Indice note compétence C7 ",null,null,null,{"$f":"IF(AND(N7<>\"\")*AND(I13=\"OK\"),L7*N7,\"\")","v":""},"/",{"$f":"L7","v":9.1999999999999993}]
[]
[null,"C8 : Optimiser le choix d'une solution en tenant compte de la relation produit-procédé-matériaux et des résultats de simulation",null,null,null,null,null,null,null,null,null,{"$f":"SUM(L17:L23)","v":10.8},null,{"$f":"IF(O16<>0,SUM(N17:N23)/SUM(O$17:O$23),\"\")","v":0},{"$f":"SUM(O17:O23)","v":10.8}]
[null,"C8.1","Exploiter les caractéristiques du produit afin d'identifier les procédés d'obtention.","Les procédés d'obtention du produit sont cohérents au regard des critères de sélection.",null,null,null,null,null,null,{"$f":"(IF(P17<>1,\"◄\",\"\"))","v":"◄"},1,null,{"$f":"(IF(H17<>\"\",1/3,0)+IF(I17<>\"\",2/3,0)+IF(J17<>\"\",1,0))*L17","v":0},{"$f":"IF(F17<>\"\",\"0\",L17)","v":1},{"$f":"COUNTA(F17:J17)","v":0},{"$f":"IF($I24=\"Erreur\",\"\",IF($I24=\"Tx<50\",\"\",IF($F17=\"x\",\"NE\",IF($G17=\"x\",\"Niv 1\",IF($H17=\"x\",\"Niv 2\",IF($I17=\"x\",\"Niv 3\",IF($J17=\"x\",\"Niv 4\",\"\")))))))","v":""},{"$f":"IF($I24=\"Erreur\",\"\",IF($I24=\"Tx<50\",\"\",IF($F17=\"x\",\"NE\",IF($G17=\"x\",\"Niv 1\",IF($H17=\"x\",\"Niv 2\",IF($I17=\"x\",\"Niv 3\",IF($J17=\"x\",\"Niv 4\",\"\")))))))","v":""}]
[null,"C8.2","Effectuer une simulation simple à partir d’une maquette numérique préparée.","La maquette numérique est importée et exploitable par le logiciel de simulation.\nLes paramètres sont renseignés et la simulation est effectuée.",null,null,null,null,null,null,"◄",1,null,{"$f":"(IF(H18<>\"\",1/3,0)+IF(I18<>\"\",2/3,0)+IF(J18<>\"\",1,0))*L18","v":0},{"$f":"IF(F18<>\"\",\"0\",L18)","v":1},{"$f":"COUNTA(F18:J18)","v":0},{"$f":"IF($I24=\"Erreur\",\"\",IF($I24=\"Tx<50\",\"\",IF($F18=\"x\",\"NE\",IF($G18=\"x\",\"Niv 1\",IF($H18=\"x\",\"Niv 2\",IF($I18=\"x\",\"Niv 3\",IF($J18=\"x\",\"Niv 4\",\"\")))))))","v":""},{"$f":"IF($I24=\"Erreur\",\"\",IF($I24=\"Tx<50\",\"\",IF($F18=\"x\",\"NE\",IF($G18=\"x\",\"Niv 1\",IF($H18=\"x\",\"Niv 2\",IF($I18=\"x\",\"Niv 3\",IF($J18=\"x\",\"Niv 4\",\"\")))))))","v":""}]
[null,"C8.3","Effectuer un calcul simple dans l’objectif de choisir un matériau ou de déterminer les caractéristiques d’un produit.","Les hypothèses de calcul sont prises en compte.\nLe calcul est correctement effectué.",null,null,null,null,null,null,"◄",1.8,null,{"$f":"(IF(H19<>\"\",1/3,0)+IF(I19<>\"\",2/3,0)+IF(J19<>\"\",1,0))*L19","v":0},{"$f":"IF(F19<>\"\",\"0\",L19)","v":1.8},{"$f":"COUNTA(F19:J19)","v":0},{"$f":"IF($I24=\"Erreur\",\"\",IF($I24=\"Tx<50\",\"\",IF($F19=\"x\",\"NE\",IF($G19=\"x\",\"Niv 1\",IF($H19=\"x\",\"Niv 2\",IF($I19=\"x\",\"Niv 3\",IF($J19=\"x\",\"Niv 4\",\"\")))))))","v":""},{"$f":"IF($I24=\"Erreur\",\"\",IF($I24=\"Tx<50\",\"\",IF($F19=\"x\",\"NE\",IF($G19=\"x\",\"Niv 1\",IF($H19=\"x\",\"Niv 2\",IF($I19=\"x\",\"Niv 3\",IF($J19=\"x\",\"Niv 4\",\"\")))))))","v":""}]
[null,"C8.4","Exploiter les résultats de simulation et de calcul afin de choisir un matériau et les traitements adéquats.","Les critères de comparaison sont identifiés et pertinents.\nLes résultats sont identifiés et validés.\nLe matériau est proposé.\nL’influence du traitement sur les propriétés du matériau est identifiée.\nLa comparaison et les choix sont effectués et pertinents.",null,null,null,null,null,null,"◄",2.5,null,{"$f":"(IF(H20<>\"\",1/3,0)+IF(I20<>\"\",2/3,0)+IF(J20<>\"\",1,0))*L20","v":0},{"$f":"IF(F20<>\"\",\"0\",L20)","v":2.5},{"$f":"COUNTA(F20:J20)","v":0},{"$f":"IF($I24=\"Erreur\",\"\",IF($I24=\"Tx<50\",\"\",IF($F20=\"x\",\"NE\",IF($G20=\"x\",\"Niv 1\",IF($H20=\"x\",\"Niv 2\",IF($I20=\"x\",\"Niv 3\",IF($J20=\"x\",\"Niv 4\",\"\")))))))","v":""},{"$f":"IF($I24=\"Erreur\",\"\",IF($I24=\"Tx<50\",\"\",IF($F20=\"x\",\"NE\",IF($G20=\"x\",\"Niv 1\",IF($H20=\"x\",\"Niv 2\",IF($I20=\"x\",\"Niv 3\",IF($J20=\"x\",\"Niv 4\",\"\")))))))","v":""}]
[null,"C8.5","Exploiter les résultats de simulation et de calcul afin de déterminer les caractéristiques mécaniques d'un produit.","Les résultats de simulation et de calcul sont identifiés et permettent une exploitation et une comparaison.\nLes caractéristiques mécaniques du produit sont définies.",null,null,null,null,null,null,"◄",1.5,null,{"$f":"(IF(H21<>\"\",1/3,0)+IF(I21<>\"\",2/3,0)+IF(J21<>\"\",1,0))*L21","v":0},{"$f":"IF(F21<>\"\",\"0\",L21)","v":1.5},{"$f":"COUNTA(F21:J21)","v":0},{"$f":"IF($I25=\"Erreur\",\"\",IF($I25=\"Tx<50\",\"\",IF($F21=\"x\",\"NE\",IF($G21=\"x\",\"Niv 1\",IF($H21=\"x\",\"Niv 2\",IF($I21=\"x\",\"Niv 3\",IF($J21=\"x\",\"Niv 4\",\"\")))))))","v":""},{"$f":"IF($I24=\"Erreur\",\"\",IF($I24=\"Tx<50\",\"\",IF($F21=\"x\",\"NE\",IF($G21=\"x\",\"Niv 1\",IF($H21=\"x\",\"Niv 2\",IF($I21=\"x\",\"Niv 3\",IF($J21=\"x\",\"Niv 4\",\"\")))))))","v":""}]
[null,"C8.6","Modifier une maquette numérique existante en tenant compte de la relation produit-procédé-matériaux.","La maquette est modifiée au regard des procédés d’obtention retenus.\nLa maquette est modifiée au regard des matériaux retenus.\nLa maquette est modifiée au regard des caractéristiques du produit.",null,null,null,null,null,null,"◄",1.5,null,0,1.5,0,"",{"$f":"IF($I24=\"Erreur\",\"\",IF($I24=\"Tx<50\",\"\",IF($F22=\"x\",\"NE\",IF($G22=\"x\",\"Niv 1\",IF($H22=\"x\",\"Niv 2\",IF($I22=\"x\",\"Niv 3\",IF($J22=\"x\",\"Niv 4\",\"\")))))))","v":""}]
[null,"C8.7","Optimiser la maquette numérique existante dans le but de satisfaire aux exigences du cahier des charges.","Les écarts avec le cahier des charges sont relevés et expliqués.\nLes résultats issus du jumeau numérique sont pris en compte. \nLa maquette est finalisée.",null,null,null,null,null,null,"◄",1.5,null,{"$f":"(IF(H23<>\"\",1/3,0)+IF(I23<>\"\",2/3,0)+IF(J23<>\"\",1,0))*L23","v":0},{"$f":"IF(F23<>\"\",\"0\",L23)","v":1.5},{"$f":"COUNTA(F23:J23)","v":0},{"$f":"IF($I24=\"Erreur\",\"\",IF($I24=\"Tx<50\",\"\",IF($F23=\"x\",\"NE\",IF($G23=\"x\",\"Niv 1\",IF($H23=\"x\",\"Niv 2\",IF($I23=\"x\",\"Niv 3\",IF($J23=\"x\",\"Niv 4\",\"\")))))))","v":""},{"$f":"IF($I24=\"Erreur\",\"\",IF($I24=\"Tx<50\",\"\",IF($F23=\"x\",\"NE\",IF($G23=\"x\",\"Niv 1\",IF($H23=\"x\",\"Niv 2\",IF($I23=\"x\",\"Niv 3\",IF($J23=\"x\",\"Niv 4\",\"\")))))))","v":""}]
[null,"Si le taux Tx de CP détaillées évaluées est < 50%, ou si il y a une erreur, alors le calcul est refusé. Voir repères ◄ à droite de la grille.",null,"Taux de compétences détaillées évaluées pour la compétence C8",null,null,{"$f":"O16/SUM(L17:L23)","v":1},null,{"$f":"IF(G24<0.5,\"Tx<50\",IF(P24<>7,\"Erreur\",\"OK\"))","v":"Erreur"},null,null,null,null,null,null,{"$f":"SUM(P17:P23)","v":0}]
[null,null,null,"Indice note compétence C8 ",null,null,null,{"$f":"IF(AND(N16<>\"\")*AND(I24=\"OK\"),L16*N16,\"\")","v":""},"/",{"$f":"L16","v":10.8}]
[]
[]
[null,"Appréciation globale :",null,null,null,"NOTE ÉPREUVE E32",null,null,{"$f":"H14+H25","v":{"$error":"#VALUE!"}},"/20"]
[]
[null,null,null,null,null,"Date :",null,{"$f":"NOW()","v":"2025-01-07T11:38:55.840"}]
[]
[null,"Nom(s) évaluateur(s)",null,"Signature(s)"]

{"sheet":"E32_Situation_N°2","index":8,"n_rows":32,"n_cols":18,"rows_kept":32,"cut":false,"hidden":false,"merged":[[0,0,6,0],[12,0,15,0],[7,3,7,4],[0,1,2,3],[0,5,0,9],[1,5,1,9],[2,5,2,9],[3,1,3,3],[3,5,3,9],[4,1,4,4],[4,5,4,9],[5,1,5,2],[5,3,5,4],[6,1,6,9],[12,6,12,7],[12,8,12,9],[17,3,17,4],[8,3,8,4],[9,3,9,4],[10,3,10,4],[11,3,11,4],[12,3,12,4],[13,3,13,4],[15,1,15,9],[16,3,16,4],[12,1,13,2],[18,3,18,4],[19,3,19,4],[20,3,20,4],[21,3,21,4],[22,3,22,4],[23,8,23,9],[24,3,24,4],[26,3,26,4],[27,1,27,2],[28,1,30,3],[29,5,29,6],[29,7,29,9],[23,1,24,2],[23,3,23,4],[27,5,27,7],[31,1,31,2],[32,1,32,2],[33,1,33,2],[34,1,34,2],[23,6,23,7]]}
["Compétences mobilisées par le questionnement","BAC PRO MODÉLISATION ET PROTOTYPAGE 3D",null,null,"NOM : ",{"$f":"IF(NOM<>\"\",NOM,\"\")","v":""}]
[null,null,null,null,"Prénom :",{"$f":"IF(PRENOM<>\"\",PRENOM,\"\")","v":""}]
[null,null,null,null,"Session :",{"$f":"IF(FCYCLE<>\"\",FCYCLE,\"\")","v":""}]
[null,"E32 : MODÉLISATION ET OPTIMISATION D'UNE SOLUTION TECHNIQUE",null,null,"Coeff. 5"]
[null,"SITUATION SIGNIFICATIVE N°2",null,null,null,"NE = non évaluée"]
[null,"Compétences",null,"Indicateurs de performance",null,"NE",0,"1/3","2/3","3/3",null,"Pts",null,"Note"]
[null,"C7 : Modéliser les solutions techniques à l'aide d'outils numériques",null,null,null,null,null,null,null,null,null,{"$f":"SUM(L8:L12)","v":9.1999999999999993},null,{"$f":"IF(O7<>0,SUM(N8:N12)/SUM(O$8:O$12),\"\")","v":0},{"$f":"SUM(O8:O12)","v":9.1999999999999993}]
[null,"C7.1","Paramétrer les outils numériques liés à la conception.","L’environnement de travail du modeleur volumique est paramétré.\nLes modules complémentaires sont paramétrés.",null,null,null,null,null,null,{"$f":"(IF(P8<>1,\"◄\",\"\"))","v":"◄"},0.5,null,{"$f":"(IF(H8<>\"\",1/3,0)+IF(I8<>\"\",2/3,0)+IF(J8<>\"\",1,0))*L8","v":0},{"$f":"IF(F8<>\"\",\"0\",L8)","v":0.5},{"$f":"COUNTA(F8:J8)","v":0},{"$f":"IF($I13=\"Erreur\",\"\",IF($I13=\"Tx<50\",\"\",IF($F8=\"x\",\"NE\",IF($G8=\"x\",\"Niv 1\",IF($H8=\"x\",\"Niv 2\",IF($I8=\"x\",\"Niv 3\",IF($J8=\"x\",\"Niv 4\",\"\")))))))","v":""},{"$f":"IF($I13=\"Erreur\",\"\",IF($I13=\"Tx<50\",\"\",IF($F8=\"x\",\"NE\",IF($G8=\"x\",\"Niv 1\",IF($H8=\"x\",\"Niv 2\",IF($I8=\"x\",\"Niv 3\",IF($J8=\"x\",\"Niv 4\",\"\")))))))","v":""}]
[null,"C7.2","Élaborer une maquette numérique 3D à partir des solutions techniques retenues.","Les pièces sont créées en respectant la relation produit-procédé-matériaux.\nLes sous-ensembles ou assemblages sont définis en respectant les contraintes (absences d’interférences, respect des liaisons).\nLes arbres de création et d’assemblage sont optimisés.",null,null,null,null,null,null,"◄",3.5,null,0,3.5,0,{"$f":"IF($I13=\"Erreur\",\"\",IF($I13=\"Tx<50\",\"\",IF($F9=\"x\",\"NE\",IF($G9=\"x\",\"Niv 1\",IF($H9=\"x\",\"Niv 2\",IF($I9=\"x\",\"Niv 3\",IF($J9=\"x\",\"Niv 4\",\"\")))))))","v":""},{"$f":"IF($I13=\"Erreur\",\"\",IF($I13=\"Tx<50\",\"\",IF($F9=\"x\",\"NE\",IF($G9=\"x\",\"Niv 1\",IF($H9=\"x\",\"Niv 2\",IF($I9=\"x\",\"Niv 3\",IF($J9=\"x\",\"Niv 4\",\"\")))))))","v":""}]
[null,"C7.3","Modéliser tout ou partie d’une pièce ou d’assemblage à partir d'un outil de rétroconception.","Tout ou partie de la pièce ou de l’assemblage est préparée en vue de sa numérisation.\nLes outils de rétroconception sont mis en œuvre à partir d’un protocole d’usage.\nLe modèle est reconstruit en vue de son exploitation.",null,null,null,null,null,null,"◄",2,null,0,2,0,{"$f":"IF($I13=\"Erreur\",\"\",IF($I13=\"Tx<50\",\"\",IF($F10=\"x\",\"NE\",IF($G10=\"x\",\"Niv 1\",IF($H10=\"x\",\"Niv 2\",IF($I10=\"x\",\"Niv 3\",IF($J10=\"x\",\"Niv 4\",\"\")))))))","v":""},{"$f":"IF($I13=\"Erreur\",\"\",IF($I13=\"Tx<50\",\"\",IF($F10=\"x\",\"NE\",IF($G10=\"x\",\"Niv 1\",IF($H10=\"x\",\"Niv 2\",IF($I10=\"x\",\"Niv 3\",IF($J10=\"x\",\"Niv 4\",\"\")))))))","v":""}]
[null,"C7.4","Préparer une maquette numérique en vue d'une simulation, d'un prototypage ou d’un jumeau numérique.","Les pièces, assemblages et contraintes sont simplifiés sans réduire la cohérence de la maquette.\nLe maillage retenu permet une exploitation.\nLes informations nécessaires à l’élaboration d’un jumeau numérique sont fournies.",null,null,null,null,null,null,"◄",2,null,0,2,0,{"$f":"IF($I13=\"Erreur\",\"\",IF($I13=\"Tx<50\",\"\",IF($F11=\"x\",\"NE\",IF($G11=\"x\",\"Niv 1\",IF($H11=\"x\",\"Niv 2\",IF($I11=\"x\",\"Niv 3\",IF($J11=\"x\",\"Niv 4\",\"\")))))))","v":""},{"$f":"IF($I13=\"Erreur\",\"\",IF($I13=\"Tx<50\",\"\",IF($F11=\"x\",\"NE\",IF($G11=\"x\",\"Niv 1\",IF($H11=\"x\",\"Niv 2\",IF($I11=\"x\",\"Niv 3\",IF($J11=\"x\",\"Niv 4\",\"\")))))))","v":""}]
[null,"C7.5","C7.5 Assurer la sauvegarde et l’archivage des données numériques.","Les enregistrements courants sont gérés.\nLes différentes versions sont identifiées.\nLes formats de fichiers utilisés sont en cohérence avec les applicatifs disponibles.\nLes bases de données et ressources numériques sont disponibles.",null,null,null,null,null,null,"◄",1.2,null,0,1.2,0,{"$f":"IF($I13=\"Erreur\",\"\",IF($I13=\"Tx<50\",\"\",IF($F12=\"x\",\"NE\",IF($G12=\"x\",\"Niv 1\",IF($H12=\"x\",\"Niv 2\",IF($I12=\"x\",\"Niv 3\",IF($J12=\"x\",\"Niv 4\",\"\")))))))","v":""},{"$f":"IF($I13=\"Erreur\",\"\",IF($I13=\"Tx<50\",\"\",IF($F12=\"x\",\"NE\",IF($G12=\"x\",\"Niv 1\",IF($H12=\"x\",\"Niv 2\",IF($I12=\"x\",\"Niv 3\",IF($J12=\"x\",\"Niv 4\",\"\")))))))","v":""}]
[null,"Si le taux Tx de CP détaillées évaluées est < 50%, ou si il y a une erreur, alors le calcul est refusé. Voir repères ◄ à droite de la grille.",null,"Taux de compétences détaillées évaluées pour la compétence C7",null,null,{"$f":"O7/SUM(L8:L12)","v":1},null,{"$f":"IF(G13<0.5,\"Tx<50\",IF(P13<>5,\"Erreur\",\"OK\"))","v":"Erreur"},null,null,null,null,null,null,{"$f":"SUM(P8:P12)","v":0}]
[null,null,null,"Indice note compétence C7 ",null,null,null,{"$f":"IF(AND(N7<>\"\")*AND(I13=\"OK\"),L7*N7,\"\")","v":""},"/",{"$f":"L7","v":9.1999999999999993}]
[]
[null,"C8 : Optimiser le choix d'une solution en tenant compte de la relation produit-procédé-matériaux et des résultats de simulation",null,null,null,null,null,null,null,null,null,{"$f":"SUM(L17:L23)","v":10.8},null,{"$f":"IF(O16<>0,SUM(N17:N23)/SUM(O$17:O$23),\"\")","v":0},{"$f":"SUM(O17:O23)","v":10.8}]
[null,"C8.1","Exploiter les caractéristiques du produit afin d'identifier les procédés d'obtention.","Les procédés d'obtention du produit sont cohérents au regard des critères de sélection.",null,null,null,null,null,null,{"$f":"(IF(P17<>1,\"◄\",\"\"))","v":"◄"},1,null,{"$f":"(IF(H17<>\"\",1/3,0)+IF(I17<>\"\",2/3,0)+IF(J17<>\"\",1,0))*L17","v":0},{"$f":"IF(F17<>\"\",\"0\",L17)","v":1},{"$f":"COUNTA(F17:J17)","v":0},{"$f":"IF($I24=\"Erreur\",\"\",IF($I24=\"Tx<50\",\"\",IF($F17=\"x\",\"NE\",IF($G17=\"x\",\"Niv 1\",IF($H17=\"x\",\"Niv 2\",IF($I17=\"x\",\"Niv 3\",IF($J17=\"x\",\"Niv 4\",\"\")))))))","v":""},{"$f":"IF($I24=\"Erreur\",\"\",IF($I24=\"Tx<50\",\"\",IF($F17=\"x\",\"NE\",IF($G17=\"x\",\"Niv 1\",IF($H17=\"x\",\"Niv 2\",IF($I17=\"x\",\"Niv 3\",IF($J17=\"x\",\"Niv 4\",\"\")))))))","v":""}]
[null,"C8.2","Effectuer une simulation simple à partir d’une maquette numérique préparée.","La maquette numérique est importée et exploitable par le logiciel de simulation.\nLes paramètres sont renseignés et la simulation est effectuée.",null,null,null,null,null,null,"◄",1,null,{"$f":"(IF(H18<>\"\",1/3,0)+IF(I18<>\"\",2/3,0)+IF(J18<>\"\",1,0))*L18","v":0},{"$f":"IF(F18<>\"\",\"0\",L18)","v":1},{"$f":"COUNTA(F18:J18)","v":0},{"$f":"IF($I24=\"Erreur\",\"\",IF($I24=\"Tx<50\",\"\",IF($F18=\"x\",\"NE\",IF($G18=\"x\",\"Niv 1\",IF($H18=\"x\",\"Niv 2\",IF($I18=\"x\",\"Niv 3\",IF($J18=\"x\",\"Niv 4\",\"\")))))))","v":""},{"$f":"IF($I24=\"Erreur\",\"\",IF($I24=\"Tx<50\",\"\",IF($F18=\"x\",\"NE\",IF($G18=\"x\",\"Niv 1\",IF($H18=\"x\",\"Niv 2\",IF($I18=\"x\",\"Niv 3\",IF($J18=\"x\",\"Niv 4\",\"\")))))))","v":""}]
[null,"C8.3","Effectuer un calcul simple dans l’objectif de choisir un matériau ou de déterminer les caractéristiques d’un produit.","Les hypothèses de calcul sont prises en compte.\nLe calcul est correctement effectué.",null,null,null,null,null,null,"◄",1.8,null,{"$f":"(IF(H19<>\"\",1/3,0)+IF(I19<>\"\",2/3,0)+IF(J19<>\"\",1,0))*L19","v":0},{"$f":"IF(F19<>\"\",\"0\",L19)","v":1.8},{"$f":"COUNTA(F19:J19)","v":0},{"$f":"IF($I24=\"Erreur\",\"\",IF($I24=\"Tx<50\",\"\",IF($F19=\"x\",\"NE\",IF($G19=\"x\",\"Niv 1\",IF($H19=\"x\",\"Niv 2\",IF($I19=\"x\",\"Niv 3\",IF($J19=\"x\",\"Niv 4\",\"\")))))))","v":""},{"$f":"IF($I24=\"Erreur\",\"\",IF($I24=\"Tx<50\",\"\",IF($F19=\"x\",\"NE\",IF($G19=\"x\",\"Niv 1\",IF($H19=\"x\",\"Niv 2\",IF($I19=\"x\",\"Niv 3\",IF($J19=\"x\",\"Niv 4\",\"\")))))))","v":""}]
[null,"C8.4","Exploiter les résultats de simulation et de calcul afin de choisir un matériau et les traitements adéquats.","Les critères de comparaison sont identifiés et pertinents.\nLes résultats sont identifiés et validés.\nLe matériau est proposé.\nL’influence du traitement sur les propriétés du matériau est identifiée.\nLa comparaison et les choix sont effectués et pertinents.",null,null,null,null,null,null,"◄",2.5,null,{"$f":"(IF(H20<>\"\",1/3,0)+IF(I20<>\"\",2/3,0)+IF(J20<>\"\",1,0))*L20","v":0},{"$f":"IF(F20<>\"\",\"0\",L20)","v":2.5},{"$f":"COUNTA(F20:J20)","v":0},{"$f":"IF($I24=\"Erreur\",\"\",IF($I24=\"Tx<50\",\"\",IF($F20=\"x\",\"NE\",IF($G20=\"x\",\"Niv 1\",IF($H20=\"x\",\"Niv 2\",IF($I20=\"x\",\"Niv 3\",IF($J20=\"x\",\"Niv 4\",\"\")))))))","v":""},{"$f":"IF($I24=\"Erreur\",\"\",IF($I24=\"Tx<50\",\"\",IF($F20=\"x\",\"NE\",IF($G20=\"x\",\"Niv 1\",IF($H20=\"x\",\"Niv 2\",IF($I20=\"x\",\"Niv 3\",IF($J20=\"x\",\"Niv 4\",\"\")))))))","v":""}]
[null,"C8.5","Exploiter les résultats de simulation et de calcul afin de déterminer les caractéristiques mécaniques d'un produit.","Les résultats de simulation et de calcul sont identifiés et permettent une exploitation et une comparaison.\nLes caractéristiques mécaniques du produit sont définies.",null,null,null,null,null,null,"◄",1.5,null,{"$f":"(IF(H21<>\"\",1/3,0)+IF(I21<>\"\",2/3,0)+IF(J21<>\"\",1,0))*L21","v":0},{"$f":"IF(F21<>\"\",\"0\",L21)","v":1.5},{"$f":"COUNTA(F21:J21)","v":0},{"$f":"IF($I25=\"Erreur\",\"\",IF($I25=\"Tx<50\",\"\",IF($F21=\"x\",\"NE\",IF($G21=\"x\",\"Niv 1\",IF($H21=\"x\",\"Niv 2\",IF($I21=\"x\",\"Niv 3\",IF($J21=\"x\",\"Niv 4\",\"\")))))))","v":""},{"$f":"IF($I24=\"Erreur\",\"\",IF($I24=\"Tx<50\",\"\",IF($F21=\"x\",\"NE\",IF($G21=\"x\",\"Niv 1\",IF($H21=\"x\",\"Niv 2\",IF($I21=\"x\",\"Niv 3\",IF($J21=\"x\",\"Niv 4\",\"\")))))))","v":""}]
[null,"C8.6","Modifier une maquette numérique existante en tenant compte de la relation produit-procédé-matériaux.","La maquette est modifiée au regard des procédés d’obtention retenus.\nLa maquette est modifiée au regard des matériaux retenus.\nLa maquette est modifiée au regard des caractéristiques du produit.",null,null,null,null,null,null,"◄",1.5,null,0,1.5,0,"",{"$f":"IF($I24=\"Erreur\",\"\",IF($I24=\"Tx<50\",\"\",IF($F22=\"x\",\"NE\",IF($G22=\"x\",\"Niv 1\",IF($H22=\"x\",\"Niv 2\",IF($I22=\"x\",\"Niv 3\",IF($J22=\"x\",\"Niv 4\",\"\")))))))","v":""}]
[null,"C8.7","Optimiser la maquette numérique existante dans le but de satisfaire aux exigences du cahier des charges.","Les écarts avec le cahier des charges sont relevés et expliqués.\nLes résultats issus du jumeau numérique sont pris en compte. \nLa maquette est finalisée.",null,null,null,null,null,null,"◄",1.5,null,{"$f":"(IF(H23<>\"\",1/3,0)+IF(I23<>\"\",2/3,0)+IF(J23<>\"\",1,0))*L23","v":0},{"$f":"IF(F23<>\"\",\"0\",L23)","v":1.5},{"$f":"COUNTA(F23:J23)","v":0},{"$f":"IF($I24=\"Erreur\",\"\",IF($I24=\"Tx<50\",\"\",IF($F23=\"x\",\"NE\",IF($G23=\"x\",\"Niv 1\",IF($H23=\"x\",\"Niv 2\",IF($I23=\"x\",\"Niv 3\",IF($J23=\"x\",\"Niv 4\",\"\")))))))","v":""},{"$f":"IF($I24=\"Erreur\",\"\",IF($I24=\"Tx<50\",\"\",IF($F23=\"x\",\"NE\",IF($G23=\"x\",\"Niv 1\",IF($H23=\"x\",\"Niv 2\",IF($I23=\"x\",\"Niv 3\",IF($J23=\"x\",\"Niv 4\",\"\")))))))","v":""}]
[null,"Si le taux Tx de CP détaillées évaluées est < 50%, ou si il y a une erreur, alors le calcul est refusé. Voir repères ◄ à droite de la grille.",null,"Taux de compétences détaillées évaluées pour la compétence C8",null,null,{"$f":"O16/SUM(L17:L23)","v":1},null,{"$f":"IF(G24<0.5,\"Tx<50\",IF(P24<>7,\"Erreur\",\"OK\"))","v":"Erreur"},null,null,null,null,null,null,{"$f":"SUM(P17:P23)","v":0}]
[null,null,null,"Indice note compétence C8 ",null,null,null,{"$f":"IF(AND(N16<>\"\")*AND(I24=\"OK\"),L16*N16,\"\")","v":""},"/",{"$f":"L16","v":10.8}]
[]
[]
[null,"Appréciation globale :",null,null,null,"NOTE ÉPREUVE E32",null,null,{"$f":"H14+H25","v":{"$error":"#VALUE!"}},"/20"]
[]
[null,null,null,null,null,"Date :",null,{"$f":"NOW()","v":"2025-01-07T11:38:55.840"}]
[]
[null,"Nom(s) évaluateur(s)",null,"Signature(s)"]

{"sheet":"E33_Situation_N°1","index":9,"n_rows":35,"n_cols":17,"rows_kept":35,"cut":false,"hidden":false,"merged":[[0,0,6,0],[9,0,11,0],[7,3,7,4],[0,1,2,3],[0,5,0,9],[1,5,1,9],[2,5,2,9],[3,1,3,3],[3,5,3,9],[4,1,4,4],[4,5,4,9],[5,1,5,2],[5,3,5,4],[6,1,6,9],[17,3,17,4],[8,3,8,4],[9,1,10,2],[9,3,9,4],[9,6,9,7],[12,1,12,9],[13,3,13,4],[14,3,14,4],[15,3,15,4],[16,3,16,4],[9,8,9,9],[10,3,10,4],[18,3,18,4],[19,1,20,2],[19,3,19,4],[19,6,19,7],[19,8,19,9],[20,3,20,4],[32,5,32,6],[32,7,32,9],[34,1,34,2],[22,1,22,9],[23,3,23,4],[24,3,24,4],[25,3,25,4],[26,1,27,2],[26,3,26,4],[26,6,26,7],[26,8,26,9],[27,3,27,4],[30,5,30,7],[35,1,35,2],[36,1,36,2],[37,1,37,2],[29,3,29,4],[30,1,30,2],[31,1,33,3]]}
["Compétences mobilisées par le questionnement","BAC PRO MODÉLISATION ET PROTOTYPAGE 3D",null,null,"NOM : ",{"$f":"IF(NOM<>\"\",NOM,\"\")","v":""}]
[null,null,null,null,"Prénom :",{"$f":"IF(PRENOM<>\"\",PRENOM,\"\")","v":""}]
[null,null,null,null,"Session :",{"$f":"IF(FCYCLE<>\"\",FCYCLE,\"\")","v":""}]
[null,"E33 : ÉLABORATION DE DOCUMENTS TECHNIQUES ET PROTOTYPAGE",null,null,"Coeff. 4"]
[null,"SITUATION SIGNIFICATIVE N°1",null,null,null,"NE = non évaluée"]
[null,"Compétences",null,"Indicateurs de performance",null,"NE",0,"1/3","2/3","3/3",null,"Pts",null,"Note"]
[null,"C9 : Élaborer le dossier de définition d'un produit",null,null,null,null,null,null,null,null,null,{"$f":"SUM(L8:L9)","v":6.2},null,{"$f":"IF(O7<>0,SUM(N8:N9)/SUM(O$8:O$9),\"\")","v":0},{"$f":"SUM(O8:O9)","v":6.2}]
[null,"C9.1","Produire la définition des pièces du produit en vue d'une fabrication ou d'un contrôle.","Les vues sont nécessaires et suffisantes à la compréhension des formes de la pièce.\nL'échelle et le format de la mise en plan sont adaptés aux dimensions de la pièce.\nLes normes graphiques sont respectées.\nLa cotation proposée, sur la maquette numérique 3D et sur les vues en plan, respecte les exigences fonctionnelles.\nLes spécifications et tolérances dimensionnelles et géométriques, sur la maquette numérique 3D et sur les vues en plan, sont définies au regard des moyens de fabrication.",null,null,null,null,null,null,{"$f":"(IF(P8<>1,\"◄\",\"\"))","v":"◄"},3.1,null,{"$f":"(IF(H8<>\"\",1/3,0)+IF(I8<>\"\",2/3,0)+IF(J8<>\"\",1,0))*L8","v":0},{"$f":"IF(F8<>\"\",\"0\",L8)","v":3.1},{"$f":"COUNTA(F8:J8)","v":0},{"$f":"IF($I10=\"Erreur\",\"\",IF($I10=\"Tx<50\",\"\",IF($F8=\"x\",\"NE\",IF($G8=\"x\",\"Niv 1\",IF($H8=\"x\",\"Niv 2\",IF($I8=\"x\",\"Niv 3\",IF($J8=\"x\",\"Niv 4\",\"\")))))))","v":""}]
[null,"C9.2","Produire des vues d'ensemble du produit.","Les vues sont nécessaires et suffisantes à la compréhension du produit.\nL'échelle et le format de la mise en plan sont adaptés aux dimensions du produit.\nLes normes graphiques sont respectées.\nChaque pièce est repérée.\nLa nomenclature est établie.\nLes spécifications de fonctionnement sont définies.",null,null,null,null,null,null,"◄",3.1,null,0,3.1,0,{"$f":"IF($I10=\"Erreur\",\"\",IF($I10=\"Tx<50\",\"\",IF($F9=\"x\",\"NE\",IF($G9=\"x\",\"Niv 1\",IF($H9=\"x\",\"Niv 2\",IF($I9=\"x\",\"Niv 3\",IF($J9=\"x\",\"Niv 4\",\"\")))))))","v":""}]
[null,"Si le taux Tx de CP détaillées évaluées est < 50%, ou si il y a une erreur, alors le calcul est refusé. Voir repères ◄ à droite de la grille.",null,"Taux de compétences détaillées évaluées pour la compétence C9",null,null,{"$f":"O7/SUM(L8:L9)","v":1},null,{"$f":"IF(G10<0.5,\"Tx<50\",IF(P10<>2,\"Erreur\",\"OK\"))","v":"Erreur"},null,null,null,null,null,null,{"$f":"SUM(P8:P9)","v":0}]
[null,null,null,"Indice note compétence C9 ",null,null,null,{"$f":"IF(AND(N7<>\"\")*AND(I10=\"OK\"),L7*N7,\"\")","v":""},"/",{"$f":"L7","v":6.2}]
[]
[null,"C10 : Réaliser un prototype pour validation fonctionnelle et/ou visuelle",null,null,null,null,null,null,null,null,null,{"$f":"SUM(L14:L19)","v":7.6},null,{"$f":"IF(O13<>0,SUM(N14:N19)/SUM(O$14:O$19),\"\")","v":0},{"$f":"SUM(O14:O19)","v":7.6}]
[null,"C10.1 ","Choisir le moyen et le matériau de réalisation du prototype.","Le moyen de prototypage choisi est pertinent.\nLe matériau choisi est cohérent vis à vis du moyen de prototypage et répond aux exigences d’utilisation du prototype.",null,null,null,null,null,null,{"$f":"(IF(P14<>1,\"◄\",\"\"))","v":"◄"},0.8,null,{"$f":"(IF(H14<>\"\",1/3,0)+IF(I14<>\"\",2/3,0)+IF(J14<>\"\",1,0))*L14","v":0},{"$f":"IF(F14<>\"\",\"0\",L14)","v":0.8},{"$f":"COUNTA(F14:J14)","v":0},{"$f":"IF($I20=\"Erreur\",\"\",IF($I20=\"Tx<50\",\"\",IF($F14=\"x\",\"NE\",IF($G14=\"x\",\"Niv 1\",IF($H14=\"x\",\"Niv 2\",IF($I14=\"x\",\"Niv 3\",IF($J14=\"x\",\"Niv 4\",\"\")))))))","v":""}]
[null,"C10.2 ","Paramétrer le moyen de prototypage.","Les paramètres de base du logiciel de mise en œuvre sont définis et le fichier de fabrication est prêt.\nLe moyen de prototypage est réglé et optimisé en fonction du matériau mis en œuvre.",null,null,null,null,null,null,"◄",1.8,null,0,1.8,0,{"$f":"IF($I20=\"Erreur\",\"\",IF($I20=\"Tx<50\",\"\",IF($F15=\"x\",\"NE\",IF($G15=\"x\",\"Niv 1\",IF($H15=\"x\",\"Niv 2\",IF($I15=\"x\",\"Niv 3\",IF($J15=\"x\",\"Niv 4\",\"\")))))))","v":""}]
[null,"C10.3  ","Réaliser le prototype.","Le prototype brut produit répond visuellement au modèle numérique.\nLes procédures de sécurité sont respectées.",null,null,null,null,null,null,"◄",1,null,0,1,0,{"$f":"IF($I20=\"Erreur\",\"\",IF($I20=\"Tx<50\",\"\",IF($F16=\"x\",\"NE\",IF($G16=\"x\",\"Niv 1\",IF($H16=\"x\",\"Niv 2\",IF($I16=\"x\",\"Niv 3\",IF($J16=\"x\",\"Niv 4\",\"\")))))))","v":""}]
[null,"C10.4","Effectuer le post-traitement du prototype.","Le prototype finalisé, exempt d’éléments superflus, est robuste.\nLes surfaces sont traitées en correspondance au visuel attendu.",null,null,null,null,null,null,"◄",1.5,null,0,1.5,0,{"$f":"IF($I20=\"Erreur\",\"\",IF($I20=\"Tx<50\",\"\",IF($F17=\"x\",\"NE\",IF($G17=\"x\",\"Niv 1\",IF($H17=\"x\",\"Niv 2\",IF($I17=\"x\",\"Niv 3\",IF($J17=\"x\",\"Niv 4\",\"\")))))))","v":""}]
[null,"C10.5  ","Contrôler le prototype.","Les caractéristiques géométriques et dimensionnelles du prototype sont validées.",null,null,null,null,null,null,"◄",1.5,null,0,1.5,0,{"$f":"IF($I20=\"Erreur\",\"\",IF($I20=\"Tx<50\",\"\",IF($F18=\"x\",\"NE\",IF($G18=\"x\",\"Niv 1\",IF($H18=\"x\",\"Niv 2\",IF($I18=\"x\",\"Niv 3\",IF($J18=\"x\",\"Niv 4\",\"\")))))))","v":""}]
[null,"C10.6  ","Effectuer la maintenance de premier niveau des moyens de prototypage en appliquant les règles de sécurité.","Les éléments d’usure sont remplacés.\nLes moyens de prototypage sont nettoyés et entretenus.\nLes procédures de sécurité sont respectées.",null,null,null,null,null,null,"◄",1,null,0,1,0,{"$f":"IF($I20=\"Erreur\",\"\",IF($I20=\"Tx<50\",\"\",IF($F19=\"x\",\"NE\",IF($G19=\"x\",\"Niv 1\",IF($H19=\"x\",\"Niv 2\",IF($I19=\"x\",\"Niv 3\",IF($J19=\"x\",\"Niv 4\",\"\")))))))","v":""}]
[null,"Si le taux Tx de CP détaillées évaluées est < 50%, ou si il y a une erreur, alors le calcul est refusé. Voir repères ◄ à droite de la grille.",null,"Taux de compétences détaillées évaluées pour la compétence C10",null,null,{"$f":"O13/SUM(L14:L19)","v":1},null,{"$f":"IF(G20<0.5,\"Tx<50\",IF(P20<>6,\"Erreur\",\"OK\"))","v":"Erreur"},null,null,null,null,null,null,{"$f":"SUM(P14:P19)","v":0}]
[null,null,null,"Indice note compétence C10 ",null,null,null,{"$f":"IF(AND(N13<>\"\")*AND(I20=\"OK\"),L13*N13,\"\")","v":""},"/",{"$f":"L13","v":7.6}]
[]
[null,"C11 : Produire les visuels permettant une exploitation des données par les parties prenantes du projet",null,null,null,null,null,null,null,null,null,{"$f":"SUM(L24:L26)","v":6.1999999999999993},null,{"$f":"IF(O23<>0,SUM(N24:N26)/SUM(O$24:O$26),\"\")","v":0},{"$f":"SUM(O24:O26)","v":6.1999999999999993}]
[null,"C11.1 ","Produire des représentations graphiques.","L’éclaté est lisible et permet une bonne compréhension de l’assemblage.\nLe rendu semi-réaliste est représentatif.\nLes différentes positions de l’assemblage sont mises en évidence.",null,null,null,null,null,null,{"$f":"(IF(P24<>1,\"◄\",\"\"))","v":"◄"},3,null,{"$f":"(IF(H24<>\"\",1/3,0)+IF(I24<>\"\",2/3,0)+IF(J24<>\"\",1,0))*L24","v":0},{"$f":"IF(F24<>\"\",\"0\",L24)","v":3},{"$f":"COUNTA(F24:J24)","v":0},{"$f":"IF($I27=\"Erreur\",\"\",IF($I27=\"Tx<50\",\"\",IF($F24=\"x\",\"NE\",IF($G24=\"x\",\"Niv 1\",IF($H24=\"x\",\"Niv 2\",IF($I24=\"x\",\"Niv 3\",IF($J24=\"x\",\"Niv 4\",\"\")))))))","v":""}]
[null,"C11.2","Produire des documents de communication explicites et/ou interactifs (montage, démontage [vidéos, animations, etc]).","L’animation de l’éclaté correspond à l’ordre de montage / démontage.\nLes documents de communication permettent d’illustrer le fonctionnement du produit.\nLe document interactif permet d’obtenir facilement des informations complémentaires.",null,null,null,null,null,null,"◄",1.6,null,0,1.6,0,{"$f":"IF($I27=\"Erreur\",\"\",IF($I27=\"Tx<50\",\"\",IF($F25=\"x\",\"NE\",IF($G25=\"x\",\"Niv 1\",IF($H25=\"x\",\"Niv 2\",IF($I25=\"x\",\"Niv 3\",IF($J25=\"x\",\"Niv 4\",\"\")))))))","v":""}]
[null,"C11.3","Intégrer des représentations dans des outils de réalité immersive et/ou augmentée.","L'ensemble des paramètres est défini pour obtenir le rendu recherché.\nLa maquette numérique est importée et préparée dans l’interface logicielle d’immersion.\nL’exploration du produit dans l’environnement de réalité immersive et/ou augmentée permet sa bonne compréhension.",null,null,null,null,null,null,"◄",1.6,null,0,1.6,0,{"$f":"IF($I27=\"Erreur\",\"\",IF($I27=\"Tx<50\",\"\",IF($F26=\"x\",\"NE\",IF($G26=\"x\",\"Niv 1\",IF($H26=\"x\",\"Niv 2\",IF($I26=\"x\",\"Niv 3\",IF($J26=\"x\",\"Niv 4\",\"\")))))))","v":""}]
[null,"Si le taux Tx de CP détaillées évaluées est < 50%, ou si il y a une erreur, alors le calcul est refusé. Voir repères ◄ à droite de la grille.",null,"Taux de compétences détaillées évaluées pour la compétence C11",null,null,{"$f":"O23/SUM(L24:L26)","v":1},null,{"$f":"IF(G27<0.5,\"Tx<50\",IF(P27<>3,\"Erreur\",\"OK\"))","v":"Erreur"},null,null,null,null,null,null,{"$f":"SUM(P24:P26)","v":0}]
[null,null,null,"Indice note compétence C11 ",null,null,null,{"$f":"IF(AND(N23<>\"\")*AND(I27=\"OK\"),L23*N23,\"\")","v":""},"/",{"$f":"L23","v":6.1999999999999993}]
[]
[]
[null,"Appréciation globale :",null,null,null,"NOTE ÉPREUVE E33",null,null,{"$f":"H11+H21+H28","v":{"$error":"#VALUE!"}},"/20"]
[]
[null,null,null,null,null,"Date :",null,{"$f":"NOW()","v":"2025-01-07T11:38:55.840"}]
[]
[null,"Nom(s) évaluateur(s)",null,"Signature(s)"]

{"sheet":"E33_Situation_N°2","index":10,"n_rows":35,"n_cols":17,"rows_kept":35,"cut":false,"hidden":false,"merged":[[0,0,6,0],[9,0,11,0],[7,3,7,4],[0,1,2,3],[0,5,0,9],[1,5,1,9],[2,5,2,9],[3,1,3,3],[3,5,3,9],[4,1,4,4],[4,5,4,9],[5,1,5,2],[5,3,5,4],[6,1,6,9],[17,3,17,4],[8,3,8,4],[9,1,10,2],[9,3,9,4],[9,6,9,7],[12,1,12,9],[13,3,13,4],[14,3,14,4],[15,3,15,4],[16,3,16,4],[9,8,9,9],[10,3,10,4],[18,3,18,4],[19,1,20,2],[19,3,19,4],[19,6,19,7],[19,8,19,9],[20,3,20,4],[32,5,32,6],[32,7,32,9],[34,1,34,2],[22,1,22,9],[23,3,23,4],[24,3,24,4],[25,3,25,4],[26,1,27,2],[26,3,26,4],[26,6,26,7],[26,8,26,9],[27,3,27,4],[30,5,30,7],[35,1,35,2],[36,1,36,2],[37,1,37,2],[29,3,29,4],[30,1,30,2],[31,1,33,3]]}
["Compétences mobilisées par le questionnement","BAC PRO MODÉLISATION ET PROTOTYPAGE 3D",null,null,"NOM : ",{"$f":"IF(NOM<>\"\",NOM,\"\")","v":""}]
[null,null,null,null,"Prénom :",{"$f":"IF(PRENOM<>\"\",PRENOM,\"\")","v":""}]
[null,null,null,null,"Session :",{"$f":"IF(FCYCLE<>\"\",FCYCLE,\"\")","v":""}]
[null,"E33 : ÉLABORATION DE DOCUMENTS TECHNIQUES ET PROTOTYPAGE",null,null,"Coeff. 4"]
[null,"SITUATION SIGNIFICATIVE N°2",null,null,null,"NE = non évaluée"]
[null,"Compétences",null,"Indicateurs de performance",null,"NE",0,"1/3","2/3","3/3",null,"Pts",null,"Note"]
[null,"C9 : Élaborer le dossier de définition d'un produit",null,null,null,null,null,null,null,null,null,{"$f":"SUM(L8:L9)","v":6.2},null,{"$f":"IF(O7<>0,SUM(N8:N9)/SUM(O$8:O$9),\"\")","v":0},{"$f":"SUM(O8:O9)","v":6.2}]
[null,"C9.1","Produire la définition des pièces du produit en vue d'une fabrication ou d'un contrôle.","Les vues sont nécessaires et suffisantes à la compréhension des formes de la pièce.\nL'échelle et le format de la mise en plan sont adaptés aux dimensions de la pièce.\nLes normes graphiques sont respectées.\nLa cotation proposée, sur la maquette numérique 3D et sur les vues en plan, respecte les exigences fonctionnelles.\nLes spécifications et tolérances dimensionnelles et géométriques, sur la maquette numérique 3D et sur les vues en plan, sont définies au regard des moyens de fabrication.",null,null,null,null,null,null,{"$f":"(IF(P8<>1,\"◄\",\"\"))","v":"◄"},3.1,null,{"$f":"(IF(H8<>\"\",1/3,0)+IF(I8<>\"\",2/3,0)+IF(J8<>\"\",1,0))*L8","v":0},{"$f":"IF(F8<>\"\",\"0\",L8)","v":3.1},{"$f":"COUNTA(F8:J8)","v":0},{"$f":"IF($I10=\"Erreur\",\"\",IF($I10=\"Tx<50\",\"\",IF($F8=\"x\",\"NE\",IF($G8=\"x\",\"Niv 1\",IF($H8=\"x\",\"Niv 2\",IF($I8=\"x\",\"Niv 3\",IF($J8=\"x\",\"Niv 4\",\"\")))))))","v":""}]
[null,"C9.2","Produire des vues d'ensemble du produit.","Les vues sont nécessaires et suffisantes à la compréhension du produit.\nL'échelle et le format de la mise en plan sont adaptés aux dimensions du produit.\nLes normes graphiques sont respectées.\nChaque pièce est repérée.\nLa nomenclature est établie.\nLes spécifications de fonctionnement sont définies.",null,null,null,null,null,null,"◄",3.1,null,0,3.1,0,{"$f":"IF($I10=\"Erreur\",\"\",IF($I10=\"Tx<50\",\"\",IF($F9=\"x\",\"NE\",IF($G9=\"x\",\"Niv 1\",IF($H9=\"x\",\"Niv 2\",IF($I9=\"x\",\"Niv 3\",IF($J9=\"x\",\"Niv 4\",\"\")))))))","v":""}]
[null,"Si le taux Tx de CP détaillées évaluées est < 50%, ou si il y a une erreur, alors le calcul est refusé. Voir repères ◄ à droite de la grille.",null,"Taux de compétences détaillées évaluées pour la compétence C9",null,null,{"$f":"O7/SUM(L8:L9)","v":1},null,{"$f":"IF(G10<0.5,\"Tx<50\",IF(P10<>2,\"Erreur\",\"OK\"))","v":"Erreur"},null,null,null,null,null,null,{"$f":"SUM(P8:P9)","v":0}]
[null,null,null,"Indice note compétence C9 ",null,null,null,{"$f":"IF(AND(N7<>\"\")*AND(I10=\"OK\"),L7*N7,\"\")","v":""},"/",{"$f":"L7","v":6.2}]
[]
[null,"C10 : Réaliser un prototype pour validation fonctionnelle et/ou visuelle",null,null,null,null,null,null,null,null,null,{"$f":"SUM(L14:L19)","v":7.6},null,{"$f":"IF(O13<>0,SUM(N14:N19)/SUM(O$14:O$19),\"\")","v":0},{"$f":"SUM(O14:O19)","v":7.6}]
[null,"C10.1 ","Choisir le moyen et le matériau de réalisation du prototype.","Le moyen de prototypage choisi est pertinent.\nLe matériau choisi est cohérent vis à vis du moyen de prototypage et répond aux exigences d’utilisation du prototype.",null,null,null,null,null,null,{"$f":"(IF(P14<>1,\"◄\",\"\"))","v":"◄"},0.8,null,{"$f":"(IF(H14<>\"\",1/3,0)+IF(I14<>\"\",2/3,0)+IF(J14<>\"\",1,0))*L14","v":0},{"$f":"IF(F14<>\"\",\"0\",L14)","v":0.8},{"$f":"COUNTA(F14:J14)","v":0},{"$f":"IF($I20=\"Erreur\",\"\",IF($I20=\"Tx<50\",\"\",IF($F14=\"x\",\"NE\",IF($G14=\"x\",\"Niv 1\",IF($H14=\"x\",\"Niv 2\",IF($I14=\"x\",\"Niv 3\",IF($J14=\"x\",\"Niv 4\",\"\")))))))","v":""}]
[null,"C10.2 ","Paramétrer le moyen de prototypage.","Les paramètres de base du logiciel de mise en œuvre sont définis et le fichier de fabrication est prêt.\nLe moyen de prototypage est réglé et optimisé en fonction du matériau mis en œuvre.",null,null,null,null,null,null,"◄",1.8,null,0,1.8,0,{"$f":"IF($I20=\"Erreur\",\"\",IF($I20=\"Tx<50\",\"\",IF($F15=\"x\",\"NE\",IF($G15=\"x\",\"Niv 1\",IF($H15=\"x\",\"Niv 2\",IF($I15=\"x\",\"Niv 3\",IF($J15=\"x\",\"Niv 4\",\"\")))))))","v":""}]
[null,"C10.3  ","Réaliser le prototype.","Le prototype brut produit répond visuellement au modèle numérique.\nLes procédures de sécurité sont respectées.",null,null,null,null,null,null,"◄",1,null,0,1,0,{"$f":"IF($I20=\"Erreur\",\"\",IF($I20=\"Tx<50\",\"\",IF($F16=\"x\",\"NE\",IF($G16=\"x\",\"Niv 1\",IF($H16=\"x\",\"Niv 2\",IF($I16=\"x\",\"Niv 3\",IF($J16=\"x\",\"Niv 4\",\"\")))))))","v":""}]
[null,"C10.4","Effectuer le post-traitement du prototype.","Le prototype finalisé, exempt d’éléments superflus, est robuste.\nLes surfaces sont traitées en correspondance au visuel attendu.",null,null,null,null,null,null,"◄",1.5,null,0,1.5,0,{"$f":"IF($I20=\"Erreur\",\"\",IF($I20=\"Tx<50\",\"\",IF($F17=\"x\",\"NE\",IF($G17=\"x\",\"Niv 1\",IF($H17=\"x\",\"Niv 2\",IF($I17=\"x\",\"Niv 3\",IF($J17=\"x\",\"Niv 4\",\"\")))))))","v":""}]
[null,"C10.5  ","Contrôler le prototype.","Les caractéristiques géométriques et dimensionnelles du prototype sont validées.",null,null,null,null,null,null,"◄",1.5,null,0,1.5,0,{"$f":"IF($I20=\"Erreur\",\"\",IF($I20=\"Tx<50\",\"\",IF($F18=\"x\",\"NE\",IF($G18=\"x\",\"Niv 1\",IF($H18=\"x\",\"Niv 2\",IF($I18=\"x\",\"Niv 3\",IF($J18=\"x\",\"Niv 4\",\"\")))))))","v":""}]
[null,"C10.6  ","Effectuer la maintenance de premier niveau des moyens de prototypage en appliquant les règles de sécurité.","Les éléments d’usure sont remplacés.\nLes moyens de prototypage sont nettoyés et entretenus.\nLes procédures de sécurité sont respectées.",null,null,null,null,null,null,"◄",1,null,0,1,0,{"$f":"IF($I20=\"Erreur\",\"\",IF($I20=\"Tx<50\",\"\",IF($F19=\"x\",\"NE\",IF($G19=\"x\",\"Niv 1\",IF($H19=\"x\",\"Niv 2\",IF($I19=\"x\",\"Niv 3\",IF($J19=\"x\",\"Niv 4\",\"\")))))))","v":""}]
[null,"Si le taux Tx de CP détaillées évaluées est < 50%, ou si il y a une erreur, alors le calcul est refusé. Voir repères ◄ à droite de la grille.",null,"Taux de compétences détaillées évaluées pour la compétence C10",null,null,{"$f":"O13/SUM(L14:L19)","v":1},null,{"$f":"IF(G20<0.5,\"Tx<50\",IF(P20<>6,\"Erreur\",\"OK\"))","v":"Erreur"},null,null,null,null,null,null,{"$f":"SUM(P14:P19)","v":0}]
[null,null,null,"Indice note compétence C10 ",null,null,null,{"$f":"IF(AND(N13<>\"\")*AND(I20=\"OK\"),L13*N13,\"\")","v":""},"/",{"$f":"L13","v":7.6}]
[]
[null,"C11 : Produire les visuels permettant une exploitation des données par les parties prenantes du projet",null,null,null,null,null,null,null,null,null,{"$f":"SUM(L24:L26)","v":6.1999999999999993},null,{"$f":"IF(O23<>0,SUM(N24:N26)/SUM(O$24:O$26),\"\")","v":0},{"$f":"SUM(O24:O26)","v":6.1999999999999993}]
[null,"C11.1 ","Produire des représentations graphiques.","L’éclaté est lisible et permet une bonne compréhension de l’assemblage.\nLe rendu semi-réaliste est représentatif.\nLes différentes positions de l’assemblage sont mises en évidence.",null,null,null,null,null,null,{"$f":"(IF(P24<>1,\"◄\",\"\"))","v":"◄"},3,null,{"$f":"(IF(H24<>\"\",1/3,0)+IF(I24<>\"\",2/3,0)+IF(J24<>\"\",1,0))*L24","v":0},{"$f":"IF(F24<>\"\",\"0\",L24)","v":3},{"$f":"COUNTA(F24:J24)","v":0},{"$f":"IF($I27=\"Erreur\",\"\",IF($I27=\"Tx<50\",\"\",IF($F24=\"x\",\"NE\",IF($G24=\"x\",\"Niv 1\",IF($H24=\"x\",\"Niv 2\",IF($I24=\"x\",\"Niv 3\",IF($J24=\"x\",\"Niv 4\",\"\")))))))","v":""}]
[null,"C11.2","Produire des documents de communication explicites et/ou interactifs (montage, démontage [vidéos, animations, etc]).","L’animation de l’éclaté correspond à l’ordre de montage / démontage.\nLes documents de communication permettent d’illustrer le fonctionnement du produit.\nLe document interactif permet d’obtenir facilement des informations complémentaires.",null,null,null,null,null,null,"◄",1.6,null,0,1.6,0,{"$f":"IF($I27=\"Erreur\",\"\",IF($I27=\"Tx<50\",\"\",IF($F25=\"x\",\"NE\",IF($G25=\"x\",\"Niv 1\",IF($H25=\"x\",\"Niv 2\",IF($I25=\"x\",\"Niv 3\",IF($J25=\"x\",\"Niv 4\",\"\")))))))","v":""}]
[null,"C11.3","Intégrer des représentations dans des outils de réalité immersive et/ou augmentée.","L'ensemble des paramètres est défini pour obtenir le rendu recherché.\nLa maquette numérique est importée et préparée dans l’interface logicielle d’immersion.\nL’exploration du produit dans l’environnement de réalité immersive et/ou augmentée permet sa bonne compréhension.",null,null,null,null,null,null,"◄",1.6,null,0,1.6,0,{"$f":"IF($I27=\"Erreur\",\"\",IF($I27=\"Tx<50\",\"\",IF($F26=\"x\",\"NE\",IF($G26=\"x\",\"Niv 1\",IF($H26=\"x\",\"Niv 2\",IF($I26=\"x\",\"Niv 3\",IF($J26=\"x\",\"Niv 4\",\"\")))))))","v":""}]
[null,"Si le taux Tx de CP détaillées évaluées est < 50%, ou si il y a une erreur, alors le calcul est refusé. Voir repères ◄ à droite de la grille.",null,"Taux de compétences détaillées évaluées pour la compétence C11",null,null,{"$f":"O23/SUM(L24:L26)","v":1},null,{"$f":"IF(G27<0.5,\"Tx<50\",IF(P27<>3,\"Erreur\",\"OK\"))","v":"Erreur"},null,null,null,null,null,null,{"$f":"SUM(P24:P26)","v":0}]
[null,null,null,"Indice note compétence C11 ",null,null,null,{"$f":"IF(AND(N23<>\"\")*AND(I27=\"OK\"),L23*N23,\"\")","v":""},"/",{"$f":"L23","v":6.1999999999999993}]
[]
[]
[null,"Appréciation globale :",null,null,null,"NOTE ÉPREUVE E33",null,null,{"$f":"H11+H21+H28","v":{"$error":"#VALUE!"}},"/20"]
[]
[null,null,null,null,null,"Date :",null,{"$f":"NOW()","v":"2025-01-07T11:38:55.840"}]
[]
[null,"Nom(s) évaluateur(s)",null,"Signature(s)"]

{"sheet":"Bilan terminal","index":11,"n_rows":69,"n_cols":36,"rows_kept":69,"cut":false,"hidden":false,"merged":[[0,0,0,1],[0,2,4,4],[0,5,0,8],[0,9,6,10],[1,0,1,1],[1,5,1,8],[2,0,2,1],[2,5,2,8],[3,0,3,1],[3,5,4,8],[8,0,8,4],[8,5,8,8],[9,0,9,4],[10,0,14,3],[10,9,14,9],[10,11,14,11],[5,0,5,8],[6,0,6,4],[6,5,7,5],[6,6,7,6],[6,7,7,7],[6,8,7,8],[7,0,7,4],[18,12,19,12],[18,13,19,13],[18,20,19,20],[10,12,14,12],[10,13,14,13],[10,20,14,20],[15,0,17,3],[15,9,17,9],[15,11,17,11],[15,12,17,12],[15,13,17,13],[15,20,17,20],[20,0,20,6],[21,0,21,6],[22,0,22,4],[23,0,24,3],[23,9,24,9],[23,11,24,11],[18,0,19,3],[18,9,19,9],[18,11,19,11],[31,12,34,12],[31,13,34,13],[31,20,34,20],[23,12,24,12],[23,13,24,13],[23,20,24,20],[25,0,30,3],[25,9,30,9],[25,11,30,11],[25,12,30,12],[25,13,30,13],[25,20,30,20],[35,0,35,6],[36,0,36,6],[37,0,37,4],[38,0,42,3],[38,9,42,9],[38,11,42,11],[31,0,34,3],[31,9,34,9],[31,11,34,11],[38,12,42,12],[38,13,42,13],[38,20,42,20],[43,0,49,3],[43,9,49,9],[43,11,49,11],[43,12,49,12],[43,13,49,13],[43,20,49,20],[50,0,50,6],[51,0,51,6],[51,11,51,13],[52,0,52,4],[53,0,54,3],[53,9,54,9],[53,11,54,11],[53,12,54,12],[53,13,54,13],[61,12,63,12],[61,13,63,13],[61,20,63,20],[53,20,54,20],[55,0,60,3],[55,9,59,9],[55,11,60,11],[55,12,60,12],[55,13,60,13],[55,20,60,20],[64,0,64,6],[65,0,65,6],[66,0,66,8],[67,1,67,2],[67,3,68,8],[68,0,68,2],[61,0,63,3],[61,9,63,9],[61,11,63,11]]}
["Nom :",null,"MAITRISE DES COMPÉTENCES\nBILAN TERMINAL\ntranmis par la commission d'évaluation au Jury\nBACCALAURÉAT PROFESSIONNEL MODÉLISATION ET PROTOTYPAGE 3D",null,null,"Académie :",null,null,null,"Le choix de l'équipe pédagigique sur le poistionnement de chaque compétences reste libre. \n\nVous pouvez cependant simplifier la saisie en transférant automatiquement la proposition donnée et au cas par cas modifier le positionnement"]
[{"$f":"IF(NOM<>\"\",NOM,\"\")","v":""},null,null,null,null,{"$f":"IF(ACAD<>\"\",ACAD,\"\")","v":""}]
["Prénom :",null,null,null,null,"Établissement :"]
[{"$f":"IF(PRENOM<>\"\",PRENOM,\"\")","v":""},null,null,null,null,{"$f":"IF(ETAB<>\"\",ETAB,\"\")","v":""}]
["Session :",{"$f":"IF(FCYCLE<>\"\",FCYCLE,\"\")","v":""}]
["ÉVALUATION"]
["- dans les colonnes \"Positionnement Situation N°1 et/ou N°2 \", les niveaux d'évaluation des grilles des situations significatives sont reportés automatiquement dans ce bilan terminal,\n- dans la colonne \"Synthèse LIVRET, les niveaux d'évaluation sont reportés depuis l'onglet Synthèse\n- dans la colonne \"Positionnement commission finale\", le niveau est proposé par la commission finale à partir des situations professionnelles et de la synthèse des compétences (outil de suivi ou livret de compétences) en prenant en compte que :",null,null,null,null,"Positionnement Situation\nN°1","Positionnement Situation\nN°2","Synthèse LIVRET","Positionnement  commission d'évalaution\n100% des CP"]
["Le meilleur niveau de maîtrise démontré au cours des différentes situations d'évaluation proposées est retenu."]
["Le calcul de la note finale est basé sur le positionnement de la commission finale"]
["E2 : PROPOSITION D'UNE SOLUTION TECHNIQUE",null,null,null,null,"Lien\ngrille S1","Lien\ngrille S2","Lien\nSynthèse","CHOIX","Poids","Proposition meilleur niveau de maîtrise","Réf","%","Pts/20","Pts CP","Sit N°1","Sit N°2","Sit N°3","Com\nfinale","Plus\n haute","Note\nCP"]
["C4 : Participer à un processus créatif et collectif de conception d'un produit",null,null,null,"C4.1 Prendre en compte le besoin utilisateur dans le cadre d’une démarche collective.",{"$f":"E2_Situation_N°1!Q8","v":""},{"$f":"E2_Situation_N°2!Q8","v":""},{"$f":"Synthèse!N17","v":""},"NE","C4 = 40%\n8 pts /20",{"$f":"IF(Z11>0,\"Niv \"&Z11,\"\")","v":""},8,40,{"$f":"(M11/5)","v":8},2,0,0,0,{"$f":"(IF(I11=\"Niv 1\",0,0)+IF(I11=\"Niv 2\",1/3,0)+IF(I11=\"Niv 3\",2/3,0)+IF(I11=\"Niv 4\",3/3,0))*O11","v":0},{"$f":"IFERROR(LARGE(P11:S11,1),\"\")","v":0},{"$f":"SUM(S11:S15)","v":0},null,{"$f":"IF(F11=\"Niv 1\",1,IF(F11=\"Niv 2\",2,IF(F11=\"Niv 3\",3,IF(F11=\"Niv 4\",4,\"\"))))","v":""},"","",{"$f":"MAX(W11:Y11)","v":0}]
[null,null,null,null,"C4.2 Participer à la mise en place de la séance de créativité.",{"$f":"E2_Situation_N°1!Q9","v":""},{"$f":"E2_Situation_N°2!Q9","v":""},{"$f":"Synthèse!N18","v":""},"NE",null,"",null,null,null,2,0,0,0,0,0,null,null,"","","",0]
[null,null,null,null,"C4.3 Participer activement à une démarche de créativité.",{"$f":"E2_Situation_N°1!Q10","v":""},{"$f":"E2_Situation_N°2!Q10","v":""},{"$f":"Synthèse!N19","v":""},"NE",null,"",null,null,null,1,0,0,0,0,0,{"$f":"SUM(T13:T14)","v":0},null,"","","",0]
[null,null,null,null,"C4.4 Proposer des idées, fonctionnalités prospectives.",{"$f":"E2_Situation_N°1!Q11","v":""},{"$f":"E2_Situation_N°2!Q11","v":""},{"$f":"Synthèse!N20","v":""},"NE",null,"",null,null,null,1,0,0,0,0,0,null,null,"","","",0]
[null,null,null,null,"C4.5 Produire des preuves de concept par la (co-) création d'un prototype rudimentaire.",{"$f":"E2_Situation_N°1!Q12","v":""},{"$f":"E2_Situation_N°2!Q12","v":""},{"$f":"Synthèse!N21","v":""},"NE",null,"",null,null,null,2,0,0,0,0,0,{"$f":"SUM(T15:T15)","v":0},null,"","","",0]
["C5 : Prendre en compte les critères de compétitivité d’un produit d’un point de vue technique, économique et sociétal",null,null,null,"C5.1 Analyser le cycle de vie du produit.",{"$f":"E2_Situation_N°1!Q17","v":""},{"$f":"E2_Situation_N°2!Q17","v":""},{"$f":"Synthèse!N22","v":""},"NE","C5 = 35%\n7 pts/20","",7,35,7,2,0,0,0,0,0,{"$f":"SUM(S16:S20)","v":0},null,"","","",0]
[null,null,null,null,"C5.2 Identifier les différents critères valorisant le produit.",{"$f":"E2_Situation_N°1!Q18","v":""},{"$f":"E2_Situation_N°2!Q18","v":""},{"$f":"Synthèse!N23","v":""},"NE",null,"",null,null,null,2.5,0,0,0,0,0,null,null,"","","",0]
[null,null,null,null,"C5.3 Comparer les impacts des solutions techniques envisagées pour le produit.",{"$f":"E2_Situation_N°1!Q19","v":""},{"$f":"E2_Situation_N°2!Q19","v":""},{"$f":"Synthèse!N24","v":""},"NE",null,"",null,null,null,2.5,0,0,0,0,0,null,null,"","","",0]
["C6 : Représenter des solutions technologiques par des croquis et/ou des schémas",null,null,null,"C6.1 Produire un schéma cinématique et technologique.",{"$f":"E2_Situation_N°1!Q24","v":""},{"$f":"E2_Situation_N°2!Q24","v":""},{"$f":"Synthèse!N25","v":""},"NE","C6 = 25%\n5 pts /20","",5,25,5,2.5,0,0,0,0,0,{"$f":"SUM(T20:T20)","v":0},null,"","","",0]
[null,null,null,null,"C6.2 Produire le croquis d'une pièce ou d'un assemblage ",{"$f":"E2_Situation_N°1!Q25","v":""},{"$f":"E2_Situation_N°2!Q25","v":""},{"$f":"Synthèse!N26","v":""},"NE",null,"",null,null,null,2.5,0,0,0,0,0,null,null,"","","",0]
["Note E2 (coeff.5) :         ",null,null,null,null,null,null,{"$f":"SUM(S11:S20)","v":0},"/ 20",null,null,{"$f":"SUM(L11:L20)","v":20},{"$f":"SUM(M11:M20)","v":100},{"$f":"SUM(N11:N20)","v":20},{"$f":"SUM(O11:O20)","v":20},null,null,null,{"$f":"SUM(S11:S20)","v":0},{"$f":"SUM(T11:T20)","v":0}]
["Proposition de note de la commission d'évaluation :",null,null,null,null,null,null,null,"/ 20"]
["E31 : IMPLICATION AU SEIN D'UN BUREAU D'ÉTUDES",null,null,null,null,"Lien\ngrille S1","Lien\ngrille S2","Lien\nSynthèse","CHOIX","Poids","Proposition meilleur niveau de maîtrise","Réf","%","Pts/20","Pts CP","Sit N°1","Sit N°2","Sit N°3","Com\nfinale","Plus\n haute","Note\nCP"]
["C1 : Rechercher une information dans une documentation technique, en local ou à distance",null,null,null,"C1.1 Prendre en compte le besoin utilisateur dans le cadre d’une démarche collective.",{"$f":"E31_Situation_N°1!Q8","v":""},{"$f":"E31_Situation_N°2!Q8","v":""},{"$f":"Synthèse!N5","v":""},"NE","C1 = 31%\n6,2 pts /20",{"$f":"IF(Z24>0,\"Niv \"&Z24,\"\")","v":""},5,31,6.2,3.1,0,0,0,{"$f":"(IF(I24=\"Niv 1\",0,0)+IF(I24=\"Niv 2\",1/3,0)+IF(I24=\"Niv 3\",2/3,0)+IF(I24=\"Niv 4\",3/3,0))*O24","v":0},{"$f":"IFERROR(LARGE(P24:S24,1),\"\")","v":0},{"$f":"SUM(S24:S25)","v":0},null,{"$f":"IF(F24=\"Niv 1\",1,IF(F24=\"Niv 2\",2,IF(F24=\"Niv 3\",3,IF(F24=\"Niv 4\",4,\"\"))))","v":""},"","",{"$f":"MAX(W24:Y24)","v":0}]
[null,null,null,null,"C1.2 Participer à la mise en place de la séance de créativité.",{"$f":"E31_Situation_N°1!Q9","v":""},{"$f":"E31_Situation_N°2!Q9","v":""},{"$f":"Synthèse!N6","v":""},"NE",null,"",null,null,null,3.1,0,0,0,0,0,null,null,"","","",0]
["C2 : Formuler et transmettre des informations, communiquer sous forme écrite et orale",null,null,null,"C2.1  Identifier les informations utiles à transmettre.",{"$f":"E31_Situation_N°1!Q14","v":""},{"$f":"E31_Situation_N°2!Q14","v":""},{"$f":"Synthèse!N7","v":""},"NE","C2 = 25%\n5 pts /20","",4,25,5,0.75,0,0,0,0,0,{"$f":"SUM(S26:S31)","v":0},null,"","","",0]
[null,null,null,null,"C2.2 Choisir et utiliser les outils de communication en présentiel ou à distance.",{"$f":"E31_Situation_N°1!Q15","v":""},{"$f":"E31_Situation_N°2!Q15","v":""},{"$f":"Synthèse!N8","v":""},"NE",null,"",null,null,null,0.75,0,0,0,0,0,null,null,{"$f":"IF(F27=\"Niv 1\",1,IF(F27=\"Niv 2\",2,IF(F27=\"Niv 3\",3,IF(F27=\"Niv 4\",4,\"\"))))","v":""},{"$f":"IF(G27=\"Niv 1\",1,IF(G27=\"Niv 2\",2,IF(G27=\"Niv 3\",3,IF(G27=\"Niv 4\",4,\"\"))))","v":""},{"$f":"IF(H27=\"Niv 1\",1,IF(H27=\"Niv 2\",2,IF(H27=\"Niv 3\",3,IF(H27=\"Niv 4\",4,\"\"))))","v":""},{"$f":"MAX(W27:Y27)","v":0}]
[null,null,null,null,"C2.3 Structurer les informations à restituer.",{"$f":"E31_Situation_N°1!Q16","v":""},{"$f":"E31_Situation_N°2!Q16","v":""},{"$f":"Synthèse!N9","v":""},"NE",null,"",null,null,null,0.75,0,0,0,0,0,null,null,"","","",0]
[null,null,null,null,"C2.4 Analyser le cycle de vie du produit.",{"$f":"E31_Situation_N°1!Q17","v":""},{"$f":"E31_Situation_N°2!Q17","v":""},{"$f":"Synthèse!N10","v":""},"NE",null,"",null,null,null,0.75,0,0,0,0,0,null,null,"","","",0]
[null,null,null,null,"C2.5 Identifier les différents critères valorisant le produit.",{"$f":"E31_Situation_N°1!Q18","v":""},{"$f":"E31_Situation_N°2!Q18","v":""},{"$f":"Synthèse!N11","v":""},"NE",null,"",null,null,null,1,0,0,0,0,0,{"$f":"SUM(T30:T33)","v":0},null,"","","",0]
[null,null,null,null,"C2.6 Comparer les impacts des solutions techniques envisagées pour le produit.",{"$f":"E31_Situation_N°1!Q19","v":""},{"$f":"E31_Situation_N°2!Q19","v":""},{"$f":"Synthèse!N12","v":""},"NE",null,"",null,null,null,1,0,0,0,0,0,{"$f":"SUM(T31:T33)","v":0},null,"","","",0]
["C3 : S’impliquer dans un environnement professionnel",null,null,null,"C3.1 Produire un schéma cinématique et technologique.",{"$f":"E31_Situation_N°1!Q24","v":""},{"$f":"E31_Situation_N°2!Q24","v":""},{"$f":"Synthèse!N13","v":""},"NE","C3 = 44%\n8,8 pts /20","",7,44,8.8000000000000007,1.5,0,0,0,0,0,{"$f":"SUM(S32:S35)","v":0},null,"","","",0]
[null,null,null,null,"C3.2 Produire le croquis d'une pièce ou d'un assemblage",{"$f":"E31_Situation_N°1!Q25","v":""},{"$f":"E31_Situation_N°2!Q25","v":""},{"$f":"Synthèse!N14","v":""},"NE",null,"",null,null,null,2.5,0,0,0,0,0,{"$f":"SUM(T33:T35)","v":0},null,"","","",0]
[null,null,null,null,"C3.3 Travailler en équipe.",{"$f":"E31_Situation_N°1!Q26","v":""},{"$f":"E31_Situation_N°2!Q26","v":""},{"$f":"Synthèse!N15","v":""},"NE",null,"",null,null,null,3,0,0,0,0,0,{"$f":"SUM(T34:T35)","v":0},null,"","","",0]
[null,null,null,null,"C3.4 Assister l’activité d’un technicien supérieur ou d’un ingénieur. ",{"$f":"E31_Situation_N°1!Q27","v":""},{"$f":"E31_Situation_N°2!Q27","v":""},{"$f":"Synthèse!N16","v":""},"NE",null,"",null,null,null,1.8,0,0,0,0,0,{"$f":"SUM(T35:T35)","v":0},null,"","","",0]
["Note E31 (coeff.7) :         ",null,null,null,null,null,null,{"$f":"SUM(S24:S35)","v":0},"/ 20",null,null,{"$f":"SUM(L24:L35)","v":16},{"$f":"SUM(M24:M35)","v":100},{"$f":"SUM(N24:N35)","v":20},{"$f":"SUM(O24:O35)","v":20},null,null,null,{"$f":"SUM(S24:S35)","v":0},{"$f":"SUM(T24:T35)","v":0}]
["Proposition de note de la commission d'évaluation :",null,null,null,null,null,null,null,"/ 20"]
["E32 : MODÉLISATION ET OPTIMISATION D'UNE SOLUTION TECHNIQUE",null,null,null,null,"Lien\ngrille S1","Lien\ngrille S2","Lien\nSynthèse","CHOIX","Poids","Proposition meilleur niveau de maîtrise","Réf","%","Pts/20","Pts CP","Sit N°1","Sit N°2","Sit N°3","Com\nfinale","Plus\n haute","Note\nCP"]
["C7 : Modéliser les solutions techniques à l'aide d'outils numériques",null,null,null,"C.7.1 Paramétrer les outils numériques liés à la conception.",{"$f":"E32_Situation_N°1!Q8","v":""},{"$f":"E32_Situation_N°2!Q8","v":""},{"$f":"Synthèse!N27","v":""},"NE","C7 = 46%\n9,2 pts /20",{"$f":"IF(Z39>0,\"Niv \"&Z39,\"\")","v":""},11,46,{"$f":"(M39/5)","v":9.1999999999999993},0.5,0,0,0,{"$f":"(IF(I39=\"Niv 1\",0,0)+IF(I39=\"Niv 2\",1/3,0)+IF(I39=\"Niv 3\",2/3,0)+IF(I39=\"Niv 4\",3/3,0))*O39","v":0},{"$f":"IFERROR(LARGE(P39:S39,1),\"\")","v":0},{"$f":"SUM(S39:S43)","v":0},null,{"$f":"IF(F39=\"Niv 1\",1,IF(F39=\"Niv 2\",2,IF(F39=\"Niv 3\",3,IF(F39=\"Niv 4\",4,\"\"))))","v":""},"","",{"$f":"MAX(W39:Y39)","v":0}]
[null,null,null,null,"C7.2 Élaborer une maquette numérique 3D à partir des solutions techniques retenues.",{"$f":"E32_Situation_N°1!Q9","v":""},{"$f":"E32_Situation_N°2!Q9","v":""},{"$f":"Synthèse!N28","v":""},"NE",null,"",null,null,null,3.5,0,0,0,0,0,null,null,"","","",0]
[null,null,null,null,"C7.3 Modéliser tout ou partie d’une pièce ou d’assemblage à partir d'un outil de rétroconception.",{"$f":"E32_Situation_N°1!Q10","v":""},{"$f":"E32_Situation_N°2!Q10","v":""},{"$f":"Synthèse!N29","v":""},"NE",null,"",null,null,null,2,0,0,0,0,0,null,null,"","","",0]
[null,null,null,null,"C7.4 Préparer une maquette numérique en vue d'une simulation, d'un prototypage ou d’un jumeau numérique.",{"$f":"E32_Situation_N°1!Q11","v":""},{"$f":"E32_Situation_N°2!Q11","v":""},{"$f":"Synthèse!N30","v":""},"NE",null,"",null,null,null,2,0,0,0,0,0,null,null,"","","",0]
[null,null,null,null,"C7.5 Assurer la sauvegarde et l’archivage des données numériques.",{"$f":"E32_Situation_N°1!Q12","v":""},{"$f":"E32_Situation_N°2!Q12","v":""},{"$f":"Synthèse!N31","v":""},"NE",null,"",null,null,null,1.2,0,0,0,0,0,null,null,"","","",0]
["C8 : Optimiser le choix d'une solution en tenant compte de la relation produit-procédé-matériaux et des résultats de simulation",null,null,null,"C8.1 Exploiter les caractéristiques du produit afin d'identifier les procédés d'obtention.",{"$f":"E32_Situation_N°1!Q17","v":""},{"$f":"E32_Situation_N°2!Q17","v":""},{"$f":"Synthèse!N32","v":""},"NE","C8 = 54%\n10,8 pts /20","",13,54,10.8,1,0,0,0,0,0,{"$f":"SUM(S44:S50)","v":0},null,"","","",0]
[null,null,null,null,"C8.2 Effectuer une simulation simple à partir d’une maquette numérique préparée.",{"$f":"E32_Situation_N°1!Q18","v":""},{"$f":"E32_Situation_N°2!Q18","v":""},{"$f":"Synthèse!N33","v":""},"NE",null,"",null,null,null,1,0,0,0,0,0,null,null,"","","",0]
[null,null,null,null,"C8.3 Effectuer un calcul simple dans l’objectif de choisir un matériau ou de déterminer les caractéristiques d’un produit.",{"$f":"E32_Situation_N°1!Q19","v":""},{"$f":"E32_Situation_N°2!Q19","v":""},{"$f":"Synthèse!N34","v":""},"NE",null,"",null,null,null,1.8,0,0,0,0,0,null,null,"","","",0]
[null,null,null,null,"C8.4 Exploiter les résultats de simulation et de calcul afin de choisir un matériau et les traitements adéquats.",{"$f":"E32_Situation_N°1!Q20","v":""},{"$f":"E32_Situation_N°2!Q20","v":""},{"$f":"Synthèse!N35","v":""},"NE",null,"",null,null,null,2.5,0,0,0,0,0,null,null,{"$f":"IF(F47=\"Niv 1\",1,IF(F47=\"Niv 2\",2,IF(F47=\"Niv 3\",3,IF(F47=\"Niv 4\",4,\"\"))))","v":""},{"$f":"IF(G47=\"Niv 1\",1,IF(G47=\"Niv 2\",2,IF(G47=\"Niv 3\",3,IF(G47=\"Niv 4\",4,\"\"))))","v":""},{"$f":"IF(H47=\"Niv 1\",1,IF(H47=\"Niv 2\",2,IF(H47=\"Niv 3\",3,IF(H47=\"Niv 4\",4,\"\"))))","v":""},{"$f":"MAX(W47:Y47)","v":0}]
[null,null,null,null,"C8.5 Exploiter les résultats de simulation et de calcul afin de déterminer les caractéristiques mécaniques d'un produit.",{"$f":"E32_Situation_N°1!Q21","v":""},{"$f":"E32_Situation_N°2!Q21","v":""},{"$f":"Synthèse!N36","v":""},"NE",null,"",null,null,null,1.5,0,0,0,0,0,null,null,"","","",0]
[null,null,null,null,"C8.6 Modifier une maquette numérique existante en tenant compte de la relation produit-procédé-matériaux.",{"$f":"E32_Situation_N°1!Q22","v":""},{"$f":"E32_Situation_N°2!Q22","v":""},{"$f":"Synthèse!N37","v":""},"NE",null,"",null,null,null,1.5,0,0,0,0,0,null,null,"","","",0]
[null,null,null,null,"C8.7 Optimiser la maquette numérique existante dans le but de satisfaire aux exigences du cahier des charges.",{"$f":"E32_Situation_N°1!Q23","v":""},{"$f":"E32_Situation_N°2!Q23","v":""},{"$f":"Synthèse!N38","v":""},"NE",null,"",null,null,null,1.5,0,0,0,0,0,null,null,"","","",0]
["Note E32 (coeff.5) :         ",null,null,null,null,null,null,{"$f":"SUM(S39:S50)","v":0},"/ 20",null,null,{"$f":"SUM(L39:L50)","v":24},{"$f":"SUM(M39:M50)","v":100},{"$f":"SUM(N39:N50)","v":20},{"$f":"SUM(O39:O50)","v":20},null,null,null,{"$f":"SUM(S39:S50)","v":0},{"$f":"SUM(T39:T50)","v":0}]
["Proposition de note de la commission d'évaluation :",null,null,null,null,null,null,null,"/ 20"]
["E33 : ÉLABORATION DE DOCUMENTS TECHNIQUES ET PROTOTYPAGE",null,null,null,null,"Lien\ngrille S1","Lien\ngrille S2","Lien\nSynthèse","CHOIX","Poids","Proposition meilleur niveau de maîtrise","Réf","%","Pts/20","Pts CP","Sit N°1","Sit N°2","Sit N°3","Com\nfinale","Plus\n haute","Note\nCP"]
["C9 : Élaborer le dossier de définition d'un produit",null,null,null,"C9.1 Produire la définition des pièces du produit en vue d'une fabrication ou d'un contrôle.",{"$f":"E33_Situation_N°1!Q8","v":""},{"$f":"E33_Situation_N°2!Q8","v":""},{"$f":"Synthèse!N39","v":""},"NE","C9 = 31%\n6,2 pts /20",{"$f":"IF(Z54>0,\"Niv \"&Z54,\"\")","v":""},8,31,6.2,3.1,0,0,0,{"$f":"(IF(I54=\"Niv 1\",0,0)+IF(I54=\"Niv 2\",1/3,0)+IF(I54=\"Niv 3\",2/3,0)+IF(I54=\"Niv 4\",3/3,0))*O54","v":0},{"$f":"IFERROR(LARGE(P54:S54,1),\"\")","v":0},{"$f":"SUM(S54:S55)","v":0},null,{"$f":"IF(F54=\"Niv 1\",1,IF(F54=\"Niv 2\",2,IF(F54=\"Niv 3\",3,IF(F54=\"Niv 4\",4,\"\"))))","v":""},"","",{"$f":"MAX(W54:Y54)","v":0}]
[null,null,null,null,"C9.2 Produire des vues d'ensemble du produit.",{"$f":"E33_Situation_N°1!Q9","v":""},{"$f":"E33_Situation_N°2!Q9","v":""},{"$f":"Synthèse!N40","v":""},"NE",null,"",null,null,null,3.1,0,0,0,0,0,null,null,"","","",0]
["C10 : Réaliser un prototype pour validation fonctionnelle et/ou visuelle",null,null,null,"C10.1 Choisir le moyen et le matériau de réalisation du prototype",{"$f":"E33_Situation_N°1!Q14","v":""},{"$f":"E33_Situation_N°2!Q14","v":""},{"$f":"Synthèse!N41","v":""},"NE","C10 = 38%\n7,6 pts /20","",10,38,7.6,0.8,0,0,0,0,0,{"$f":"SUM(S56:S61)","v":0},null,"","","",0]
[null,null,null,null,"C10.2 Paramétrer le moyen de prototypage",{"$f":"E33_Situation_N°1!Q15","v":""},{"$f":"E33_Situation_N°2!Q15","v":""},{"$f":"Synthèse!N42","v":""},"NE",null,"",null,null,null,1.8,0,0,0,0,0,null,null,{"$f":"IF(F57=\"Niv 1\",1,IF(F57=\"Niv 2\",2,IF(F57=\"Niv 3\",3,IF(F57=\"Niv 4\",4,\"\"))))","v":""},{"$f":"IF(G57=\"Niv 1\",1,IF(G57=\"Niv 2\",2,IF(G57=\"Niv 3\",3,IF(G57=\"Niv 4\",4,\"\"))))","v":""},{"$f":"IF(H57=\"Niv 1\",1,IF(H57=\"Niv 2\",2,IF(H57=\"Niv 3\",3,IF(H57=\"Niv 4\",4,\"\"))))","v":""},{"$f":"MAX(W57:Y57)","v":0}]
[null,null,null,null,"C10.3 Réaliser le prototype",{"$f":"E33_Situation_N°1!Q16","v":""},{"$f":"E33_Situation_N°2!Q16","v":""},{"$f":"Synthèse!N43","v":""},"NE",null,"",null,null,null,1,0,0,0,0,0,null,null,"","","",0,null,null,null,null,null,null,null,null,null,"²"]
[null,null,null,null,"C10.4 Effectuer le post-traitement du prototype",{"$f":"E33_Situation_N°1!Q17","v":""},{"$f":"E33_Situation_N°2!Q17","v":""},{"$f":"Synthèse!N44","v":""},"NE",null,"",null,null,null,1.5,0,0,0,0,0,null,null,"","","",0]
[null,null,null,null,"C10.5 Contrôler le prototype",{"$f":"E33_Situation_N°1!Q18","v":""},{"$f":"E33_Situation_N°2!Q18","v":""},{"$f":"Synthèse!N45","v":""},"NE",null,"",null,null,null,1.5,0,0,0,0,0,{"$f":"SUM(T60:T63)","v":0},null,"","","",0]
[null,null,null,null,"C10.6 Effectuer la maintenance de premier niveau des moyens de prototypage en appliquant les règles de sécurité",{"$f":"E33_Situation_N°1!Q19","v":""},{"$f":"E33_Situation_N°2!Q19","v":""},{"$f":"Synthèse!N46","v":""},"NE",null,"",null,null,null,1,0,0,0,0,0,{"$f":"SUM(T61:T63)","v":0},null,"","","",0]
["C11 : Produire les visuels permettant une exploitation des données par les parties prenantes du projet",null,null,null,"C11.1 Produire des représentations graphiques",{"$f":"E33_Situation_N°1!Q24","v":""},{"$f":"E33_Situation_N°2!Q24","v":""},{"$f":"Synthèse!N47","v":""},"NE","C11 = 31%\n6,2 pts /20","",8,31,6.2,3,0,0,0,0,0,{"$f":"SUM(S62:S64)","v":0},null,"","","",0]
[null,null,null,null,"C11.2 Produire des documents de communication explicites et/ou interactifs (montage, démontage [vidéos, animations, etc]) ",{"$f":"E33_Situation_N°1!Q25","v":""},{"$f":"E33_Situation_N°2!Q25","v":""},{"$f":"Synthèse!N48","v":""},"NE",null,"",null,null,null,1.6,0,0,0,0,0,{"$f":"SUM(T63:T64)","v":0},null,"","","",0]
[null,null,null,null,"C11.3 Intégrer des représentations dans des outils de réalité immersive et/ou augmentée.",{"$f":"E33_Situation_N°1!Q26","v":""},{"$f":"E33_Situation_N°2!Q26","v":""},{"$f":"Synthèse!N49","v":""},"NE",null,"",null,null,null,1.6,0,0,0,0,0,{"$f":"SUM(T64:T64)","v":0},null,"","","",0]
["Note E33 (coeff.7) :         ",null,null,null,null,null,null,{"$f":"SUM(S54:S64)","v":0},"/ 20",null,null,{"$f":"SUM(L54:L64)","v":26},{"$f":"SUM(M54:M64)","v":100},{"$f":"SUM(N54:N64)","v":20},{"$f":"SUM(O54:O64)","v":20.000000000000004},null,null,null,{"$f":"SUM(S54:S64)","v":0},{"$f":"SUM(T54:T64)","v":0}]
["Proposition de note de la commission d'évaluation :",null,null,null,null,null,null,null,"/ 20"]
["Observations générales et/ou spécifiques par épreuve :\n"]
["Date :  ",{"$f":"NOW()","v":"2025-01-07T11:38:55.840"},null,"Équipe pédagogique\n\n\n\n\n                                                                                                   Nom(s) / Signature(s) / Qualité(s)"]
["Établissement\n\n\n                                    Nom et cachet"]

{"sheet":"Récap Notes","index":12,"n_rows":22,"n_cols":8,"rows_kept":22,"cut":false,"hidden":false,"merged":[[12,2,12,7],[7,1,7,7],[0,1,3,7],[5,1,5,7],[9,2,9,7],[10,2,10,7],[11,2,11,7],[15,1,15,2],[17,1,17,2],[19,1,19,2],[21,1,21,2],[13,2,13,7]]}
[null,"BAC PRO MODÉLISATION ET PROTOTYPAGE 3D"]
[]
[]
[]
[]
[null,"ÉPREUVES PROFESSIONNELLES"]
[]
[null,"NOTES PROPOSÉES PAR LA COMMISSION D'EVALUATION"]
[]
[null,"NOM : ",{"$f":"IF(NOM<>\"\",NOM,\"\")","v":""}]
[null,"Prénom :",{"$f":"IF(PRENOM<>\"\",PRENOM,\"\")","v":""}]
[null,"Session :",{"$f":"IF(FCYCLE<>\"\",FCYCLE,\"\")","v":""}]
[null,"Académie :",{"$f":"IF(ACAD<>\"\",ACAD,\"\")","v":""}]
[null,"Etablissement :",{"$f":"IF(ETAB<>\"\",ETAB,\"\")","v":""}]
[null,null,null,"coef."]
[null,"NOTE ÉPREUVE E2 ",null,3,{"$f":"ROUND('Bilan terminal'!H22,1)","v":0},"/20",{"$f":"E16*D16","v":0},"/60"]
[]
[null,"NOTE ÉPREUVE E31 ",null,2,{"$f":"ROUND('Bilan terminal'!H37,1)","v":0},"/20",{"$f":"E18*D18","v":0},"/40"]
[]
[null,"NOTE ÉPREUVE E32",null,5,{"$f":"ROUND('Bilan terminal'!H52,1)","v":0},"/20",{"$f":"E20*D20","v":0},"/100"]
[]
[null,"NOTE ÉPREUVE E33",null,4,{"$f":"ROUND('Bilan terminal'!H66,1)","v":0},"/20",{"$f":"E22*D22","v":0},"/80"]